Department Family,Entity,Date,Expense Type,Expense Area,Supplier,Transaction Number,AP Amount,Description,Supplier Postcode
Department of Health,NHS Sheffield CCG,9/30/2020,C&M-PMS Contract Value,PRC DELEGATED CO-COMMISSIONING,ABBEY LANE SURGERY,33820213,"24,109.05",BABALP,S8 0BJ
Department of Health,NHS Sheffield CCG,9/30/2020,C&M-PMS Funding Differential Review,PRC DELEGATED CO-COMMISSIONING,ABBEY LANE SURGERY,33820213,454.56,ZFUNFP,S8 0BJ
Department of Health,NHS Sheffield CCG,9/30/2020,C&M-PMS PCN DES Participation,PRC DELEGATED CO-COMMISSIONING,ABBEY LANE SURGERY,33820213,449.67,PARTIP,S8 0BJ
Department of Health,NHS Sheffield CCG,9/30/2020,C&M-PMS Prem Notional Rent,PRC DELEGATED CO-COMMISSIONING,ABBEY LANE SURGERY,33820213,"2,166.67",NRENT,S8 0BJ
Department of Health,NHS Sheffield CCG,9/30/2020,C&M-PMS Prem Rates,PRC DELEGATED CO-COMMISSIONING,ABBEY LANE SURGERY,33820213,773.00,RANDRP,S8 0BJ
Department of Health,NHS Sheffield CCG,9/30/2020,C&M-PMS QOF Aspiration,PRC DELEGATED CO-COMMISSIONING,ABBEY LANE SURGERY,33820213,"2,440.19",QUASPP,S8 0BJ
Department of Health,NHS Sheffield CCG,9/30/2020,Cont Care-Physical Disab (65+),CHC ADULT FULLY FUNDED,ABBEYCARE NURSING,33827325,"54,600.60",,S35 9YY
Department of Health,NHS Sheffield CCG,9/30/2020,Miscellaneous Expenditure (L9),ADMIN PROJECTS,AURORA WELLBEING CENTRE,33653223,"50,906.58",Macmillan LWABC funding for Aurora Services,S80 2BP
Department of Health,NHS Sheffield CCG,9/30/2020,Hcare Srv Rec Fdtn Trust-Contract Baseline,ACUTE COMMISSIONING,BARNSLEY HOSPITAL NHS FOUNDATION TRUST,33863831,"131,016.71",,S75 2EP
Department of Health,NHS Sheffield CCG,9/30/2020,C&M-PMS Contract Value,PRC DELEGATED CO-COMMISSIONING,BARNSLEY ROAD SURGERY,33820215,"20,985.95",BABALP,S5 0QJ
Department of Health,NHS Sheffield CCG,9/30/2020,C&M-PMS Funding Differential Review,PRC DELEGATED CO-COMMISSIONING,BARNSLEY ROAD SURGERY,33820215,506.44,ZFUNFP,S5 0QJ
Department of Health,NHS Sheffield CCG,9/30/2020,C&M-PMS PCN DES Participation,PRC DELEGATED CO-COMMISSIONING,BARNSLEY ROAD SURGERY,33820215,393.76,PARTIP,S5 0QJ
Department of Health,NHS Sheffield CCG,9/30/2020,C&M-PMS Prem Notional Rent,PRC DELEGATED CO-COMMISSIONING,BARNSLEY ROAD SURGERY,33820215,"2,652.17",NRENT,S5 0QJ
Department of Health,NHS Sheffield CCG,9/30/2020,C&M-PMS QOF Aspiration,PRC DELEGATED CO-COMMISSIONING,BARNSLEY ROAD SURGERY,33820215,"2,289.13",QUASPP,S5 0QJ
Department of Health,NHS Sheffield CCG,9/30/2020,C&M-GMS Cost of Drugs -Prescribing,LOCAL ENHANCED SERVICES,BASLOW ROAD & SHOREHAM STREET SURGERIES,34000849,"27,514.54",DRGP,S17 4DR
Department of Health,NHS Sheffield CCG,9/30/2020,C&M-GMS Global Sum,PRC DELEGATED CO-COMMISSIONING,BASLOW ROAD & SHOREHAM STREET SURGERIES,34000849,"99,359.75",GSUMG,S17 4DR
Department of Health,NHS Sheffield CCG,9/30/2020,C&M-GMS PCN DES Participation,PRC DELEGATED CO-COMMISSIONING,BASLOW ROAD & SHOREHAM STREET SURGERIES,34000849,"1,984.37",PARTIG,S17 4DR
Department of Health,NHS Sheffield CCG,9/30/2020,C&M-GMS Prem Notional Rent,PRC DELEGATED CO-COMMISSIONING,BASLOW ROAD & SHOREHAM STREET SURGERIES,34000849,"8,222.71",NRENT,S17 4DR
Department of Health,NHS Sheffield CCG,9/30/2020,C&M-GMS Prem Rates,PRC DELEGATED CO-COMMISSIONING,BASLOW ROAD & SHOREHAM STREET SURGERIES,34000849,"2,619.00",RANDR,S17 4DR
Department of Health,NHS Sheffield CCG,9/30/2020,C&M-GMS Prof Fees Prescribing,PRC DELEGATED CO-COMMISSIONING,BASLOW ROAD & SHOREHAM STREET SURGERIES,34000849,"5,490.57",DRGPPF,S17 4DR
Department of Health,NHS Sheffield CCG,9/30/2020,C&M-GMS QOF Aspiration,PRC DELEGATED CO-COMMISSIONING,BASLOW ROAD & SHOREHAM STREET SURGERIES,34000849,"10,305.33",QUASPG,S17 4DR
Department of Health,NHS Sheffield CCG,9/30/2020,Cont Care-Physical Disab (65+),CHC ADULT FULLY FUNDED,BC SHEFFIELD LTD,33744745,"38,229.75",https://nww.einvoice-prod.sbs.nhs.uk:8179/invoicepdf/613263b8-3cd8-57c2-9494-d56a771c51d1,S9 2TJ
Department of Health,NHS Sheffield CCG,9/30/2020,C&M-PMS Contract Value,PRC DELEGATED CO-COMMISSIONING,BIRLEY HEALTH CENTRE,33820217,"64,972.79",BABALP,S12 3BP
Department of Health,NHS Sheffield CCG,9/30/2020,C&M-PMS Funding Differential Review,PRC DELEGATED CO-COMMISSIONING,BIRLEY HEALTH CENTRE,33820217,"1,118.40",ZFUNFP,S12 3BP
Department of Health,NHS Sheffield CCG,9/30/2020,C&M-PMS Out of Hours Opt Outs,PRC DELEGATED CO-COMMISSIONING,BIRLEY HEALTH CENTRE,33820217,35.09,APMOOH,S12 3BP
Department of Health,NHS Sheffield CCG,9/30/2020,C&M-PMS PCN DES Participation,PRC DELEGATED CO-COMMISSIONING,BIRLEY HEALTH CENTRE,33820217,"1,222.93",PARTIP,S12 3BP
Department of Health,NHS Sheffield CCG,9/30/2020,C&M-PMS PCO Other,PRC DELEGATED CO-COMMISSIONING,BIRLEY HEALTH CENTRE,33820217,539.80,CQCRP,S12 3BP
Department of Health,NHS Sheffield CCG,9/30/2020,C&M-PMS Prem Notional Rent,PRC DELEGATED CO-COMMISSIONING,BIRLEY HEALTH CENTRE,33820217,"7,600.58",NRENT,S12 3BP
Department of Health,NHS Sheffield CCG,9/30/2020,C&M-PMS Prem Rates,PRC DELEGATED CO-COMMISSIONING,BIRLEY HEALTH CENTRE,33820217,"1,697.00",RANDRP,S12 3BP
Department of Health,NHS Sheffield CCG,9/30/2020,C&M-PMS QOF Aspiration,PRC DELEGATED CO-COMMISSIONING,BIRLEY HEALTH CENTRE,33820217,"6,800.34",QUASPP,S12 3BP
Department of Health,NHS Sheffield CCG,9/30/2020,Cont Care-Physical Disab (<65),CHC ADULT FULLY FUNDED,BONDCARE,33793579,"78,299.29",CHC SCHEDULE SEPTEMBER 2020 - Chatsworth Grange Nursing Home,NW4 4EF
Department of Health,NHS Sheffield CCG,9/30/2020,C&M-GMS Cost of Drugs -Prescribing,LOCAL ENHANCED SERVICES,BROOMHILL SURGERY,34000856,"2,216.80",DRGP,S10 5BU
Department of Health,NHS Sheffield CCG,9/30/2020,C&M-GMS Global Sum,PRC DELEGATED CO-COMMISSIONING,BROOMHILL SURGERY,34000856,"67,105.41",GSUMG,S10 5BU
Department of Health,NHS Sheffield CCG,9/30/2020,C&M-GMS PCN DES Participation,PRC DELEGATED CO-COMMISSIONING,BROOMHILL SURGERY,34000856,"1,329.60",PARTIG,S10 5BU
Department of Health,NHS Sheffield CCG,9/30/2020,C&M-GMS Prem Cost Rent,PRC DELEGATED CO-COMMISSIONING,BROOMHILL SURGERY,34000856,"2,975.42",COST,S10 5BU
Department of Health,NHS Sheffield CCG,9/30/2020,C&M-GMS Prem Notional Rent,PRC DELEGATED CO-COMMISSIONING,BROOMHILL SURGERY,34000856,"2,612.50",NRENT,S10 5BU
Department of Health,NHS Sheffield CCG,9/30/2020,C&M-GMS Prof Fees Prescribing,PRC DELEGATED CO-COMMISSIONING,BROOMHILL SURGERY,34000856,55.28,DRGPPF,S10 5BU
Department of Health,NHS Sheffield CCG,9/30/2020,C&M-GMS QOF Aspiration,PRC DELEGATED CO-COMMISSIONING,BROOMHILL SURGERY,34000856,"6,610.83",QUASPG,S10 5BU
Department of Health,NHS Sheffield CCG,9/30/2020,C&M-GMS Cost of Drugs -Prescribing,LOCAL ENHANCED SERVICES,BUCHANAN ROAD SURGERY,34000852,111.73,DRGP,S5 8AL
Department of Health,NHS Sheffield CCG,9/30/2020,C&M-GMS Global Sum,PRC DELEGATED CO-COMMISSIONING,BUCHANAN ROAD SURGERY,34000852,"36,502.70",GSUMG,S5 8AL
Department of Health,NHS Sheffield CCG,9/30/2020,C&M-GMS PCN DES Participation,PRC DELEGATED CO-COMMISSIONING,BUCHANAN ROAD SURGERY,34000852,734.72,PARTIG,S5 8AL
Department of Health,NHS Sheffield CCG,9/30/2020,C&M-GMS Prem Notional Rent,PRC DELEGATED CO-COMMISSIONING,BUCHANAN ROAD SURGERY,34000852,"2,595.83",NRENT,S5 8AL
Department of Health,NHS Sheffield CCG,9/30/2020,C&M-GMS Prem Rates,PRC DELEGATED CO-COMMISSIONING,BUCHANAN ROAD SURGERY,34000852,"1,283.00",RANDR,S5 8AL
Department of Health,NHS Sheffield CCG,9/30/2020,C&M-GMS Prof Fees Prescribing,PRC DELEGATED CO-COMMISSIONING,BUCHANAN ROAD SURGERY,34000852,36.85,DRGPPF,S5 8AL
Department of Health,NHS Sheffield CCG,9/30/2020,C&M-GMS QOF Aspiration,PRC DELEGATED CO-COMMISSIONING,BUCHANAN ROAD SURGERY,34000852,"4,322.18",QUASPG,S5 8AL
Department of Health,NHS Sheffield CCG,9/30/2020,C&M-PMS GP Statutory Levy,PRC DELEGATED CO-COMMISSIONING,BURNCROSS SURGERY,33820218,-527.77,STATL,S35 1RN
Department of Health,NHS Sheffield CCG,9/30/2020,C&M-PMS PCN DES Participation,PRC DELEGATED CO-COMMISSIONING,BURNCROSS SURGERY,33820218,"-2,282.33",PARTIP,S35 1RN
Department of Health,NHS Sheffield CCG,9/30/2020,C&M-PMS Prem Rates,PRC DELEGATED CO-COMMISSIONING,BURNCROSS SURGERY,33820218,"-4,533.00",RANDRP,S35 1RN
Department of Health,NHS Sheffield CCG,9/30/2020,C&M-PMS Contract Value,PRC DELEGATED CO-COMMISSIONING,BURNCROSS SURGERY,33820219,"122,506.28",BABALP,S35 1RN
Department of Health,NHS Sheffield CCG,9/30/2020,C&M-PMS Funding Differential Review,PRC DELEGATED CO-COMMISSIONING,BURNCROSS SURGERY,33820219,"2,746.32",ZFUNFP,S35 1RN
Department of Health,NHS Sheffield CCG,9/30/2020,C&M-PMS PCN DES Participation,PRC DELEGATED CO-COMMISSIONING,BURNCROSS SURGERY,33820219,"2,282.33",PARTIP,S35 1RN
Department of Health,NHS Sheffield CCG,9/30/2020,C&M-PMS Prem Notional Rent,PRC DELEGATED CO-COMMISSIONING,BURNCROSS SURGERY,33820219,"14,919.67",NRENT,S35 1RN
Department of Health,NHS Sheffield CCG,9/30/2020,C&M-PMS Prem Rates,PRC DELEGATED CO-COMMISSIONING,BURNCROSS SURGERY,33820219,"7,993.89",RANDRP,S35 1RN
Department of Health,NHS Sheffield CCG,9/30/2020,C&M-PMS QOF Aspiration,PRC DELEGATED CO-COMMISSIONING,BURNCROSS SURGERY,33820219,"15,253.36",QUASPP,S35 1RN
Department of Health,NHS Sheffield CCG,9/30/2020,C&M-PMS Contract Value,PRC DELEGATED CO-COMMISSIONING,BURNGREAVE SURGERY,33820221,"58,071.43",BABALP,S3 9DA
Department of Health,NHS Sheffield CCG,9/30/2020,C&M-PMS Funding Differential Review,PRC DELEGATED CO-COMMISSIONING,BURNGREAVE SURGERY,33820221,"1,135.51",ZFUNFP,S3 9DA
Department of Health,NHS Sheffield CCG,9/30/2020,C&M-PMS Out of Hours Opt Outs,PRC DELEGATED CO-COMMISSIONING,BURNGREAVE SURGERY,33820221,81.48,APMOOH,S3 9DA
Department of Health,NHS Sheffield CCG,9/30/2020,C&M-PMS PCN DES Participation,PRC DELEGATED CO-COMMISSIONING,BURNGREAVE SURGERY,33820221,"1,090.16",PARTIP,S3 9DA
Department of Health,NHS Sheffield CCG,9/30/2020,C&M-PMS Prem Notional Rent,PRC DELEGATED CO-COMMISSIONING,BURNGREAVE SURGERY,33820221,"6,622.92",NRENT,S3 9DA
Department of Health,NHS Sheffield CCG,9/30/2020,C&M-PMS Prem Rates,PRC DELEGATED CO-COMMISSIONING,BURNGREAVE SURGERY,33820221,"2,297.00",RANDRP,S3 9DA
Department of Health,NHS Sheffield CCG,9/30/2020,C&M-PMS Prem Water Rates,PRC DELEGATED CO-COMMISSIONING,BURNGREAVE SURGERY,33820221,294.46,RAMWP,S3 9DA
Department of Health,NHS Sheffield CCG,9/30/2020,C&M-PMS QOF Aspiration,PRC DELEGATED CO-COMMISSIONING,BURNGREAVE SURGERY,33820221,"5,108.72",QUASPP,S3 9DA
Department of Health,NHS Sheffield CCG,9/30/2020,NHS Recbles <1Yr- CHC Risk Pool Con,CHC ADULT FULLY FUNDED,CARE COSTS LTD,33744471,"40,199.28",,BB1 5QB
Department of Health,NHS Sheffield CCG,9/30/2020,C&M-GMS Cost of Drugs -Prescribing,LOCAL ENHANCED SERVICES,CARTERKNOWLE & DORE MEDICAL PRACTICE,34000862,"4,437.40",DRGP,S7 2DW
Department of Health,NHS Sheffield CCG,9/30/2020,C&M-GMS Global Sum,PRC DELEGATED CO-COMMISSIONING,CARTERKNOWLE & DORE MEDICAL PRACTICE,34000862,"89,051.56",GSUMG,S7 2DW
Department of Health,NHS Sheffield CCG,9/30/2020,C&M-GMS PCN DES Participation,PRC DELEGATED CO-COMMISSIONING,CARTERKNOWLE & DORE MEDICAL PRACTICE,34000862,"1,740.63",PARTIG,S7 2DW
Department of Health,NHS Sheffield CCG,9/30/2020,C&M-GMS PCO Locum Sickness,PRC DELEGATED CO-COMMISSIONING,CARTERKNOWLE & DORE MEDICAL PRACTICE,34000862,"4,754.76",LOCSIG,S7 2DW
Department of Health,NHS Sheffield CCG,9/30/2020,C&M-GMS Prem Notional Rent,PRC DELEGATED CO-COMMISSIONING,CARTERKNOWLE & DORE MEDICAL PRACTICE,34000862,"7,855.00",NRENT,S7 2DW
Department of Health,NHS Sheffield CCG,9/30/2020,C&M-GMS Prof Fees Prescribing,PRC DELEGATED CO-COMMISSIONING,CARTERKNOWLE & DORE MEDICAL PRACTICE,34000862,225.69,DRGPPF,S7 2DW
Department of Health,NHS Sheffield CCG,9/30/2020,C&M-GMS QOF Aspiration,PRC DELEGATED CO-COMMISSIONING,CARTERKNOWLE & DORE MEDICAL PRACTICE,34000862,"10,268.52",QUASPG,S7 2DW
Department of Health,NHS Sheffield CCG,9/30/2020,C&M-GMS Cost of Drugs -Prescribing,LOCAL ENHANCED SERVICES,CHARNOCK HEALTH PRIMARY CARE CENTRE,34000858,"1,289.29",DRGP,S12 3GH
Department of Health,NHS Sheffield CCG,9/30/2020,C&M-GMS Global Sum,PRC DELEGATED CO-COMMISSIONING,CHARNOCK HEALTH PRIMARY CARE CENTRE,34000858,"44,623.04",GSUMG,S12 3GH
Department of Health,NHS Sheffield CCG,9/30/2020,C&M-GMS PCN DES Participation,PRC DELEGATED CO-COMMISSIONING,CHARNOCK HEALTH PRIMARY CARE CENTRE,34000858,893.45,PARTIG,S12 3GH
Department of Health,NHS Sheffield CCG,9/30/2020,C&M-GMS PCO Other,PRC DELEGATED CO-COMMISSIONING,CHARNOCK HEALTH PRIMARY CARE CENTRE,34000858,371.00,CQCRG,S12 3GH
Department of Health,NHS Sheffield CCG,9/30/2020,C&M-GMS Prem Notional Rent,PRC DELEGATED CO-COMMISSIONING,CHARNOCK HEALTH PRIMARY CARE CENTRE,34000858,335.00,NRENT,S12 3GH
Department of Health,NHS Sheffield CCG,9/30/2020,C&M-GMS Prem Rates,PRC DELEGATED CO-COMMISSIONING,CHARNOCK HEALTH PRIMARY CARE CENTRE,34000858,"1,572.00",RANDR,S12 3GH
Department of Health,NHS Sheffield CCG,9/30/2020,C&M-GMS Prof Fees Prescribing,PRC DELEGATED CO-COMMISSIONING,CHARNOCK HEALTH PRIMARY CARE CENTRE,34000858,64.48,DRGPPF,S12 3GH
Department of Health,NHS Sheffield CCG,9/30/2020,C&M-GMS QOF Aspiration,PRC DELEGATED CO-COMMISSIONING,CHARNOCK HEALTH PRIMARY CARE CENTRE,34000858,"4,918.11",QUASPG,S12 3GH
Department of Health,NHS Sheffield CCG,9/30/2020,NHS Recbles <1Yr- CHC Risk Pool Con,CHC ADULT FULLY FUNDED,CHC RETRO,33744855,"43,955.01",,S20 4SF
Department of Health,NHS Sheffield CCG,9/30/2020,Hcare Srv Rec Fdtn Trust-Contract Baseline,ACUTE COMMISSIONING,CHESTERFIELD ROYAL HOSPITAL NHS FOUNDATION TRUST,33863832,"369,177.00",,S44 5BL
Department of Health,NHS Sheffield CCG,9/30/2020,C&M-APMS Contract Value,PRC DELEGATED CO-COMMISSIONING,CLOVER CITY PRACTICE,33825296,"30,667.03",APMADD,S9 4QH
Department of Health,NHS Sheffield CCG,9/30/2020,C&M-APMS OOH Opt Outs,PRC DELEGATED CO-COMMISSIONING,CLOVER CITY PRACTICE,33825296,3.93,APMOOA,S9 4QH
Department of Health,NHS Sheffield CCG,9/30/2020,C&M-APMS PCN DES Participation,PRC DELEGATED CO-COMMISSIONING,CLOVER CITY PRACTICE,33825296,563.87,PARTIA,S9 4QH
Department of Health,NHS Sheffield CCG,9/30/2020,C&M-PMS QOF Aspiration,PRC DELEGATED CO-COMMISSIONING,CLOVER CITY PRACTICE,33825296,"1,589.35",QUASPP,S9 4QH
Department of Health,NHS Sheffield CCG,9/30/2020,C&M-APMS Contract Value,PRC DELEGATED CO-COMMISSIONING,CLOVER GROUP PRACTICE,33825223,"132,241.77",APMADD,S9 4QH
Department of Health,NHS Sheffield CCG,9/30/2020,C&M-APMS PCN DES Participation,PRC DELEGATED CO-COMMISSIONING,CLOVER GROUP PRACTICE,33825223,"2,478.23",PARTIA,S9 4QH
Department of Health,NHS Sheffield CCG,9/30/2020,C&M-APMS Prem Actual Rent,PRC DELEGATED CO-COMMISSIONING,CLOVER GROUP PRACTICE,33825223,"5,169.68",RENTA,S9 4QH
Department of Health,NHS Sheffield CCG,9/30/2020,C&M-APMS Prem Healthcentre Rent,PRC DELEGATED CO-COMMISSIONING,CLOVER GROUP PRACTICE,33825223,"59,788.21",HEALTA,S9 4QH
Department of Health,NHS Sheffield CCG,9/30/2020,C&M-APMS Prem Notional Rent,PRC DELEGATED CO-COMMISSIONING,CLOVER GROUP PRACTICE,33825223,"2,804.17",NRENTA,S9 4QH
Department of Health,NHS Sheffield CCG,9/30/2020,C&M-PMS Out of Hours Opt Outs,PRC DELEGATED CO-COMMISSIONING,CLOVER GROUP PRACTICE,33825223,70.54,APMOOH,S9 4QH
Department of Health,NHS Sheffield CCG,9/30/2020,C&M-PMS QOF Aspiration,PRC DELEGATED CO-COMMISSIONING,CLOVER GROUP PRACTICE,33825223,"11,362.38",QUASPP,S9 4QH
Department of Health,NHS Sheffield CCG,9/30/2020,Voids and Subsidies,PRC DELEGATED CO-COMMISSIONING,COMMUNITY HEALTH PARTNERSHIPS LTD,33755392,"37,796.72",,M1 5AN
Department of Health,NHS Sheffield CCG,9/30/2020,Voids and Subsidies,RECHARGES NHS PROPERTY SERVICES LTD,COMMUNITY HEALTH PARTNERSHIPS LTD,33755392,"97,487.49",https://nww.einvoice-prod.sbs.nhs.uk:8179/invoicepdf/fde305f7-15a5-5eff-9f9d-58a02d4fe831,M1 5AN
Department of Health,NHS Sheffield CCG,9/30/2020,Other professional fees,CLINICAL GOVERNANCE,CONSEQUENCE UK LTD,33264657,"21,795.00",Review of patient case work (as per PO 620003576),WR14 1UQ
Department of Health,NHS Sheffield CCG,9/30/2020,Cont Care-Physical Disab (<65),CHC ADULT FULLY FUNDED,COUNTRY COURT CARE LTD,33793543,"28,119.08",CHC SCHEDULE SEPTEMBER 2020 - Abbey Grange Nursing Home (Country Court Care),S5 6UU
Department of Health,NHS Sheffield CCG,9/30/2020,Cont Care-Physical Disab (<65),CHC ADULT FULLY FUNDED,COUNTRYWIDE CARE HOMES LTD,33793573,"26,352.34",CHC SCHEDULE SEPTEMBER 2020 - Heeley Bank Care Home (Countrywide),LS12 6DB
Department of Health,NHS Sheffield CCG,9/30/2020,C&M-GMS Cost of Drugs -Prescribing,LOCAL ENHANCED SERVICES,CROOKES PRACTICE,34000867,28.62,DRGP,S10 1GN
Department of Health,NHS Sheffield CCG,9/30/2020,C&M-GMS Global Sum,PRC DELEGATED CO-COMMISSIONING,CROOKES PRACTICE,34000867,"54,789.72",GSUMG,S10 1GN
Department of Health,NHS Sheffield CCG,9/30/2020,C&M-GMS PCN DES Participation,PRC DELEGATED CO-COMMISSIONING,CROOKES PRACTICE,34000867,"1,070.10",PARTIG,S10 1GN
Department of Health,NHS Sheffield CCG,9/30/2020,C&M-GMS PCO Locum Sickness,PRC DELEGATED CO-COMMISSIONING,CROOKES PRACTICE,34000867,"5,975.47",LOCSIG,S10 1GN
Department of Health,NHS Sheffield CCG,9/30/2020,C&M-GMS PCO Other,PRC DELEGATED CO-COMMISSIONING,CROOKES PRACTICE,34000867,527.70,CQCRG,S10 1GN
Department of Health,NHS Sheffield CCG,9/30/2020,C&M-GMS Prem Notional Rent,PRC DELEGATED CO-COMMISSIONING,CROOKES PRACTICE,34000867,"3,874.67",NRENT,S10 1GN
Department of Health,NHS Sheffield CCG,9/30/2020,C&M-GMS Prem Rates,PRC DELEGATED CO-COMMISSIONING,CROOKES PRACTICE,34000867,"1,534.00",RANDR,S10 1GN
Department of Health,NHS Sheffield CCG,9/30/2020,C&M-GMS Prof Fees Prescribing,PRC DELEGATED CO-COMMISSIONING,CROOKES PRACTICE,34000867,16.12,DRGPPF,S10 1GN
Department of Health,NHS Sheffield CCG,9/30/2020,C&M-GMS QOF Aspiration,PRC DELEGATED CO-COMMISSIONING,CROOKES PRACTICE,34000867,"4,910.43",QUASPG,S10 1GN
Department of Health,NHS Sheffield CCG,9/30/2020,C&M-PMS Contract Value,PRC DELEGATED CO-COMMISSIONING,DEEPCAR MEDICAL CENTRE,33825225,"42,020.72",BABALP,S36 2RA
Department of Health,NHS Sheffield CCG,9/30/2020,C&M-PMS Funding Differential Review,PRC DELEGATED CO-COMMISSIONING,DEEPCAR MEDICAL CENTRE,33825225,722.88,ZFUNFP,S36 2RA
Department of Health,NHS Sheffield CCG,9/30/2020,C&M-PMS Out of Hours Opt Outs,PRC DELEGATED CO-COMMISSIONING,DEEPCAR MEDICAL CENTRE,33825225,54.39,APMOOH,S36 2RA
Department of Health,NHS Sheffield CCG,9/30/2020,C&M-PMS PCN DES Participation,PRC DELEGATED CO-COMMISSIONING,DEEPCAR MEDICAL CENTRE,33825225,790.09,PARTIP,S36 2RA
Department of Health,NHS Sheffield CCG,9/30/2020,C&M-PMS Prem Healthcentre Rent,PRC DELEGATED CO-COMMISSIONING,DEEPCAR MEDICAL CENTRE,33825225,"30,655.23",HEALTH,S36 2RA
Department of Health,NHS Sheffield CCG,9/30/2020,C&M-PMS QOF Aspiration,PRC DELEGATED CO-COMMISSIONING,DEEPCAR MEDICAL CENTRE,33825225,"4,079.29",QUASPP,S36 2RA
Department of Health,NHS Sheffield CCG,9/30/2020,C&M-GMS Cost of Drugs -Prescribing,LOCAL ENHANCED SERVICES,DEVONSHIRE GREEN MEDICAL CENTRE,34000870,93.55,DRGP,S3 7SF
Department of Health,NHS Sheffield CCG,9/30/2020,C&M-GMS Global Sum,PRC DELEGATED CO-COMMISSIONING,DEVONSHIRE GREEN MEDICAL CENTRE,34000870,"48,647.96",GSUMG,S3 7SF
Department of Health,NHS Sheffield CCG,9/30/2020,C&M-GMS PCN DES Participation,PRC DELEGATED CO-COMMISSIONING,DEVONSHIRE GREEN MEDICAL CENTRE,34000870,935.21,PARTIG,S3 7SF
Department of Health,NHS Sheffield CCG,9/30/2020,C&M-GMS Prem Notional Rent,PRC DELEGATED CO-COMMISSIONING,DEVONSHIRE GREEN MEDICAL CENTRE,34000870,"5,987.50",NRENT,S3 7SF
Department of Health,NHS Sheffield CCG,9/30/2020,C&M-GMS Prem Rates,PRC DELEGATED CO-COMMISSIONING,DEVONSHIRE GREEN MEDICAL CENTRE,34000870,"1,385.00",RANDR,S3 7SF
Department of Health,NHS Sheffield CCG,9/30/2020,C&M-GMS Prem Water Rates,PRC DELEGATED CO-COMMISSIONING,DEVONSHIRE GREEN MEDICAL CENTRE,34000870,321.87,RAMW,S3 7SF
Department of Health,NHS Sheffield CCG,9/30/2020,C&M-GMS Prof Fees Prescribing,PRC DELEGATED CO-COMMISSIONING,DEVONSHIRE GREEN MEDICAL CENTRE,34000870,27.64,DRGPPF,S3 7SF
Department of Health,NHS Sheffield CCG,9/30/2020,C&M-GMS QOF Aspiration,PRC DELEGATED CO-COMMISSIONING,DEVONSHIRE GREEN MEDICAL CENTRE,34000870,"4,846.82",QUASPG,S3 7SF
Department of Health,NHS Sheffield CCG,9/30/2020,Hcare Srv Rec Fdtn Trust-Contract Baseline,ACUTE COMMISSIONING,DONCASTER AND BASSETLAW HOSPITALS NHS FOUNDATION TRUST,33863834,"79,729.44",,WF3 1WE
Department of Health,NHS Sheffield CCG,9/30/2020,C&M-PMS Contract Value,PRC DELEGATED CO-COMMISSIONING,DOVERCOURT SURGERY,33825227,"75,292.54",BABALP,S2 5FX
Department of Health,NHS Sheffield CCG,9/30/2020,C&M-PMS DES Learn Dsblty Hlth Chk,PRC DELEGATED CO-COMMISSIONING,DOVERCOURT SURGERY,33825227,840.00,LEARNP,S2 5FX
Department of Health,NHS Sheffield CCG,9/30/2020,C&M-PMS Funding Differential Review,PRC DELEGATED CO-COMMISSIONING,DOVERCOURT SURGERY,33825227,"1,158.87",ZFUNFP,S2 5FX
Department of Health,NHS Sheffield CCG,9/30/2020,C&M-PMS Out of Hours Opt Outs,PRC DELEGATED CO-COMMISSIONING,DOVERCOURT SURGERY,33825227,29.65,APMOOH,S2 5FX
Department of Health,NHS Sheffield CCG,9/30/2020,C&M-PMS PCN DES Participation,PRC DELEGATED CO-COMMISSIONING,DOVERCOURT SURGERY,33825227,"1,405.71",PARTIP,S2 5FX
Department of Health,NHS Sheffield CCG,9/30/2020,C&M-PMS PCO Other,PRC DELEGATED CO-COMMISSIONING,DOVERCOURT SURGERY,33825227,542.80,CQCRP,S2 5FX
Department of Health,NHS Sheffield CCG,9/30/2020,C&M-PMS Prem Actual Rent,PRC DELEGATED CO-COMMISSIONING,DOVERCOURT SURGERY,33825227,"12,400.00",RENT,S2 5FX
Department of Health,NHS Sheffield CCG,9/30/2020,C&M-PMS Prem Notional Rent,PRC DELEGATED CO-COMMISSIONING,DOVERCOURT SURGERY,33825227,"1,708.33",NRENT,S2 5FX
Department of Health,NHS Sheffield CCG,9/30/2020,C&M-PMS Prem Water Rates,PRC DELEGATED CO-COMMISSIONING,DOVERCOURT SURGERY,33825227,71.99,RAMWP,S2 5FX
Department of Health,NHS Sheffield CCG,9/30/2020,C&M-PMS QOF Aspiration,PRC DELEGATED CO-COMMISSIONING,DOVERCOURT SURGERY,33825227,"7,547.35",QUASPP,S2 5FX
Department of Health,NHS Sheffield CCG,9/30/2020,C&M-PMS Contract Value,PRC DELEGATED CO-COMMISSIONING,DR MEHROTRA & PARTNER,33825229,"25,077.95",BABALP,S9 5DH
Department of Health,NHS Sheffield CCG,9/30/2020,C&M-PMS Funding Differential Review,PRC DELEGATED CO-COMMISSIONING,DR MEHROTRA & PARTNER,33825229,520.47,ZFUNFP,S9 5DH
Department of Health,NHS Sheffield CCG,9/30/2020,C&M-PMS PCN DES Participation,PRC DELEGATED CO-COMMISSIONING,DR MEHROTRA & PARTNER,33825229,472.15,PARTIP,S9 5DH
Department of Health,NHS Sheffield CCG,9/30/2020,C&M-PMS PCO Other,PRC DELEGATED CO-COMMISSIONING,DR MEHROTRA & PARTNER,33825229,"1,357.20",CQCRP,S9 5DH
Department of Health,NHS Sheffield CCG,9/30/2020,C&M-PMS Prem Notional Rent,PRC DELEGATED CO-COMMISSIONING,DR MEHROTRA & PARTNER,33825229,"5,157.29",NRENT,S9 5DH
Department of Health,NHS Sheffield CCG,9/30/2020,C&M-PMS Prem Rates,PRC DELEGATED CO-COMMISSIONING,DR MEHROTRA & PARTNER,33825229,"1,741.00",RANDRP,S9 5DH
Department of Health,NHS Sheffield CCG,9/30/2020,C&M-PMS QOF Aspiration,PRC DELEGATED CO-COMMISSIONING,DR MEHROTRA & PARTNER,33825229,"2,581.66",QUASPP,S9 5DH
Department of Health,NHS Sheffield CCG,9/30/2020,C&M-PMS Contract Value,PRC DELEGATED CO-COMMISSIONING,DR MILNER & PARTNERS,33825231,"78,568.49",BABALP,S6 4JQ
Department of Health,NHS Sheffield CCG,9/30/2020,C&M-PMS Funding Differential Review,PRC DELEGATED CO-COMMISSIONING,DR MILNER & PARTNERS,33825231,"1,377.22",ZFUNFP,S6 4JQ
Department of Health,NHS Sheffield CCG,9/30/2020,C&M-PMS PCN DES Participation,PRC DELEGATED CO-COMMISSIONING,DR MILNER & PARTNERS,33825231,"1,452.54",PARTIP,S6 4JQ
Department of Health,NHS Sheffield CCG,9/30/2020,C&M-PMS Prem Actual Rent,PRC DELEGATED CO-COMMISSIONING,DR MILNER & PARTNERS,33825231,"11,382.00",RENT,S6 4JQ
Department of Health,NHS Sheffield CCG,9/30/2020,C&M-PMS Prem Notional Rent,PRC DELEGATED CO-COMMISSIONING,DR MILNER & PARTNERS,33825231,"4,462.42",NRENT,S6 4JQ
Department of Health,NHS Sheffield CCG,9/30/2020,C&M-PMS Prem Rates,PRC DELEGATED CO-COMMISSIONING,DR MILNER & PARTNERS,33825231,"2,766.00",RANDRP,S6 4JQ
Department of Health,NHS Sheffield CCG,9/30/2020,C&M-PMS QOF Aspiration,PRC DELEGATED CO-COMMISSIONING,DR MILNER & PARTNERS,33825231,"6,594.77",QUASPP,S6 4JQ
Department of Health,NHS Sheffield CCG,9/30/2020,C&M-GMS Cost of Drugs -Prescribing,LOCAL ENHANCED SERVICES,DUKE MEDICAL CENTRE,34000878,668.51,DRGP,S2 2TD
Department of Health,NHS Sheffield CCG,9/30/2020,C&M-GMS Global Sum,PRC DELEGATED CO-COMMISSIONING,DUKE MEDICAL CENTRE,34000878,"61,654.13",GSUMG,S2 2TD
Department of Health,NHS Sheffield CCG,9/30/2020,C&M-GMS PCN DES Participation,PRC DELEGATED CO-COMMISSIONING,DUKE MEDICAL CENTRE,34000878,"1,155.59",PARTIG,S2 2TD
Department of Health,NHS Sheffield CCG,9/30/2020,C&M-GMS Prem Notional Rent,PRC DELEGATED CO-COMMISSIONING,DUKE MEDICAL CENTRE,34000878,"5,721.67",NRENT,S2 2TD
Department of Health,NHS Sheffield CCG,9/30/2020,C&M-GMS Prof Fees Prescribing,PRC DELEGATED CO-COMMISSIONING,DUKE MEDICAL CENTRE,34000878,71.39,DRGPPF,S2 2TD
Department of Health,NHS Sheffield CCG,9/30/2020,C&M-GMS QOF Aspiration,PRC DELEGATED CO-COMMISSIONING,DUKE MEDICAL CENTRE,34000878,"5,286.81",QUASPG,S2 2TD
Department of Health,NHS Sheffield CCG,9/30/2020,C&M-PMS Contract Value,PRC DELEGATED CO-COMMISSIONING,DUNNINC ROAD SURGERY,33825233,"21,770.95",BABALP,S5 0AE
Department of Health,NHS Sheffield CCG,9/30/2020,C&M-PMS Funding Differential Review,PRC DELEGATED CO-COMMISSIONING,DUNNINC ROAD SURGERY,33825233,506.77,ZFUNFP,S5 0AE
Department of Health,NHS Sheffield CCG,9/30/2020,C&M-PMS PCN DES Participation,PRC DELEGATED CO-COMMISSIONING,DUNNINC ROAD SURGERY,33825233,408.46,PARTIP,S5 0AE
Department of Health,NHS Sheffield CCG,9/30/2020,C&M-PMS Prem Notional Rent,PRC DELEGATED CO-COMMISSIONING,DUNNINC ROAD SURGERY,33825233,"1,695.83",NRENT,S5 0AE
Department of Health,NHS Sheffield CCG,9/30/2020,C&M-PMS QOF Aspiration,PRC DELEGATED CO-COMMISSIONING,DUNNINC ROAD SURGERY,33825233,"1,748.41",QUASPP,S5 0AE
Department of Health,NHS Sheffield CCG,9/30/2020,C&M-PMS Contract Value,PRC DELEGATED CO-COMMISSIONING,DYKES HALL MEDICAL CENTRE,33825235,-564.76,BABALP,S6 4GQ
Department of Health,NHS Sheffield CCG,9/30/2020,C&M-PMS DES Extended Hours Access,PRC DELEGATED CO-COMMISSIONING,DYKES HALL MEDICAL CENTRE,33825235,"-4,338.04",EXTHDP,S6 4GQ
Department of Health,NHS Sheffield CCG,9/30/2020,C&M-PMS GP Statutory Levy,PRC DELEGATED CO-COMMISSIONING,DYKES HALL MEDICAL CENTRE,33825235,-332.64,STATL,S6 4GQ
Department of Health,NHS Sheffield CCG,9/30/2020,C&M-PMS Out of Hours Opt Outs,PRC DELEGATED CO-COMMISSIONING,DYKES HALL MEDICAL CENTRE,33825235,"-3,442.36",APMOOH,S6 4GQ
Department of Health,NHS Sheffield CCG,9/30/2020,C&M-PMS PCN DES Clinical Director,PRC DELEGATED CO-COMMISSIONING,DYKES HALL MEDICAL CENTRE,33825235,"-2,160.04",CLINDP,S6 4GQ
Department of Health,NHS Sheffield CCG,9/30/2020,C&M-PMS PCN DES PCN support,LOCAL ENHANCED SERVICES,DYKES HALL MEDICAL CENTRE,33825235,"-4,487.63",PCNSUP,S6 4GQ
Department of Health,NHS Sheffield CCG,9/30/2020,C&M-PMS PCN DES Participation,PRC DELEGATED CO-COMMISSIONING,DYKES HALL MEDICAL CENTRE,33825235,"-1,355.09",PARTIP,S6 4GQ
Department of Health,NHS Sheffield CCG,9/30/2020,C&M-PCN DES Support Payment,PRC DELEGATED CO-COMMISSIONING,DYKES HALL MEDICAL CENTRE,33825237,"1,595.45",SUPPPP,S6 4GQ
Department of Health,NHS Sheffield CCG,9/30/2020,C&M-PMS Contract Value,PRC DELEGATED CO-COMMISSIONING,DYKES HALL MEDICAL CENTRE,33825237,"72,316.26",BABALP,S6 4GQ
Department of Health,NHS Sheffield CCG,9/30/2020,C&M-PMS DES Extended Hours Access,PRC DELEGATED CO-COMMISSIONING,DYKES HALL MEDICAL CENTRE,33825237,"8,682.06",EXTHDP,S6 4GQ
Department of Health,NHS Sheffield CCG,9/30/2020,C&M-PMS Funding Differential Review,PRC DELEGATED CO-COMMISSIONING,DYKES HALL MEDICAL CENTRE,33825237,"1,473.36",ZFUNFP,S6 4GQ
Department of Health,NHS Sheffield CCG,9/30/2020,C&M-PMS Out of Hours Opt Outs,PRC DELEGATED CO-COMMISSIONING,DYKES HALL MEDICAL CENTRE,33825237,26.43,APMOOH,S6 4GQ
Department of Health,NHS Sheffield CCG,9/30/2020,C&M-PMS PCN DES Clinical Director,PRC DELEGATED CO-COMMISSIONING,DYKES HALL MEDICAL CENTRE,33825237,"4,314.10",CLINDP,S6 4GQ
Department of Health,NHS Sheffield CCG,9/30/2020,C&M-PMS PCN DES PCN support,LOCAL ENHANCED SERVICES,DYKES HALL MEDICAL CENTRE,33825237,"8,975.26",PCNSUP,S6 4GQ
Department of Health,NHS Sheffield CCG,9/30/2020,C&M-PMS PCN DES Participation,PRC DELEGATED CO-COMMISSIONING,DYKES HALL MEDICAL CENTRE,33825237,"1,355.09",PARTIP,S6 4GQ
Department of Health,NHS Sheffield CCG,9/30/2020,C&M-PMS Prem Notional Rent,PRC DELEGATED CO-COMMISSIONING,DYKES HALL MEDICAL CENTRE,33825237,"5,377.08",NRENT,S6 4GQ
Department of Health,NHS Sheffield CCG,9/30/2020,C&M-PMS Prem Rates,PRC DELEGATED CO-COMMISSIONING,DYKES HALL MEDICAL CENTRE,33825237,"1,366.00",RANDRP,S6 4GQ
Department of Health,NHS Sheffield CCG,9/30/2020,C&M-PMS QOF Aspiration,PRC DELEGATED CO-COMMISSIONING,DYKES HALL MEDICAL CENTRE,33825237,"8,087.38",QUASPP,S6 4GQ
Department of Health,NHS Sheffield CCG,9/30/2020,C&M-PMS Contract Value,PRC DELEGATED CO-COMMISSIONING,EAST BANK MEDICAL CENTRE,33825241,"50,495.85",BABALP,S2 2AG
Department of Health,NHS Sheffield CCG,9/30/2020,C&M-PMS DES Learn Dsblty Hlth Chk,PRC DELEGATED CO-COMMISSIONING,EAST BANK MEDICAL CENTRE,33825241,840.00,LEARNP,S2 2AG
Department of Health,NHS Sheffield CCG,9/30/2020,C&M-PMS Funding Differential Review,PRC DELEGATED CO-COMMISSIONING,EAST BANK MEDICAL CENTRE,33825241,771.92,ZFUNFP,S2 2AG
Department of Health,NHS Sheffield CCG,9/30/2020,C&M-PMS PCN DES Participation,PRC DELEGATED CO-COMMISSIONING,EAST BANK MEDICAL CENTRE,33825241,937.18,PARTIP,S2 2AG
Department of Health,NHS Sheffield CCG,9/30/2020,C&M-PMS PCO Locum Adop/Pat/Mat,PRC DELEGATED CO-COMMISSIONING,EAST BANK MEDICAL CENTRE,33825241,"11,100.17",SICKC,S2 2AG
Department of Health,NHS Sheffield CCG,9/30/2020,C&M-PMS Prem Notional Rent,PRC DELEGATED CO-COMMISSIONING,EAST BANK MEDICAL CENTRE,33825241,"10,583.33",NRENT,S2 2AG
Department of Health,NHS Sheffield CCG,9/30/2020,C&M-PMS Prem Rates,PRC DELEGATED CO-COMMISSIONING,EAST BANK MEDICAL CENTRE,33825241,"2,944.00",RANDRP,S2 2AG
Department of Health,NHS Sheffield CCG,9/30/2020,C&M-PMS QOF Aspiration,PRC DELEGATED CO-COMMISSIONING,EAST BANK MEDICAL CENTRE,33825241,"5,136.41",QUASPP,S2 2AG
Department of Health,NHS Sheffield CCG,9/30/2020,C&M-GMS Cost of Drugs -Prescribing,LOCAL ENHANCED SERVICES,ECCLESFIELD GROUP PRACTICE,34000874,"2,510.17",DRGP,S35 9XQ
Department of Health,NHS Sheffield CCG,9/30/2020,C&M-GMS DES Extended Hours Access,PRC DELEGATED CO-COMMISSIONING,ECCLESFIELD GROUP PRACTICE,34000874,"10,328.70",EXTHDG,S35 9XQ
Department of Health,NHS Sheffield CCG,9/30/2020,C&M-GMS Global Sum,PRC DELEGATED CO-COMMISSIONING,ECCLESFIELD GROUP PRACTICE,34000874,"73,424.44",GSUMG,S35 9XQ
Department of Health,NHS Sheffield CCG,9/30/2020,C&M-GMS PCN DES Clinical Director,PRC DELEGATED CO-COMMISSIONING,ECCLESFIELD GROUP PRACTICE,34000874,"5,132.32",CLINDG,S35 9XQ
Department of Health,NHS Sheffield CCG,9/30/2020,C&M-GMS PCN DES PCN support,LOCAL ENHANCED SERVICES,ECCLESFIELD GROUP PRACTICE,34000874,"10,677.50",PCNSUG,S35 9XQ
Department of Health,NHS Sheffield CCG,9/30/2020,C&M-GMS PCN DES Participation,PRC DELEGATED CO-COMMISSIONING,ECCLESFIELD GROUP PRACTICE,34000874,"1,438.45",PARTIG,S35 9XQ
Department of Health,NHS Sheffield CCG,9/30/2020,C&M-GMS PCO Locum Sickness,PRC DELEGATED CO-COMMISSIONING,ECCLESFIELD GROUP PRACTICE,34000874,"12,924.62",LOCSIG,S35 9XQ
Department of Health,NHS Sheffield CCG,9/30/2020,C&M-GMS Prem Notional Rent,PRC DELEGATED CO-COMMISSIONING,ECCLESFIELD GROUP PRACTICE,34000874,"6,805.42",NRENT,S35 9XQ
Department of Health,NHS Sheffield CCG,9/30/2020,C&M-GMS Prem Rates,PRC DELEGATED CO-COMMISSIONING,ECCLESFIELD GROUP PRACTICE,34000874,551.00,RANDR,S35 9XQ
Department of Health,NHS Sheffield CCG,9/30/2020,C&M-GMS Prem Water Rates,PRC DELEGATED CO-COMMISSIONING,ECCLESFIELD GROUP PRACTICE,34000874,179.83,RAMW,S35 9XQ
Department of Health,NHS Sheffield CCG,9/30/2020,C&M-GMS Prof Fees Prescribing,PRC DELEGATED CO-COMMISSIONING,ECCLESFIELD GROUP PRACTICE,34000874,195.75,DRGPPF,S35 9XQ
Department of Health,NHS Sheffield CCG,9/30/2020,C&M-GMS QOF Aspiration,PRC DELEGATED CO-COMMISSIONING,ECCLESFIELD GROUP PRACTICE,34000874,"9,221.39",QUASPG,S35 9XQ
Department of Health,NHS Sheffield CCG,9/30/2020,C&M-PCN DES Support Payment,PRC DELEGATED CO-COMMISSIONING,ECCLESFIELD GROUP PRACTICE,34000874,"2,071.64",SUPPPG,S35 9XQ
Department of Health,NHS Sheffield CCG,9/30/2020,C&M-GMS Cost of Drugs -Prescribing,LOCAL ENHANCED SERVICES,ELM LANE SURGERY,34000876,897.15,DRGP,S5 7TW
Department of Health,NHS Sheffield CCG,9/30/2020,C&M-GMS Global Sum,PRC DELEGATED CO-COMMISSIONING,ELM LANE SURGERY,34000876,"42,637.52",GSUMG,S5 7TW
Department of Health,NHS Sheffield CCG,9/30/2020,C&M-GMS PCN DES Participation,PRC DELEGATED CO-COMMISSIONING,ELM LANE SURGERY,34000876,851.24,PARTIG,S5 7TW
Department of Health,NHS Sheffield CCG,9/30/2020,C&M-GMS Prem Notional Rent,PRC DELEGATED CO-COMMISSIONING,ELM LANE SURGERY,34000876,"5,343.00",NRENT,S5 7TW
Department of Health,NHS Sheffield CCG,9/30/2020,C&M-GMS Prem Rates,PRC DELEGATED CO-COMMISSIONING,ELM LANE SURGERY,34000876,"1,527.00",RANDR,S5 7TW
Department of Health,NHS Sheffield CCG,9/30/2020,C&M-GMS Prof Fees Prescribing,PRC DELEGATED CO-COMMISSIONING,ELM LANE SURGERY,34000876,78.30,DRGPPF,S5 7TW
Department of Health,NHS Sheffield CCG,9/30/2020,C&M-GMS QOF Aspiration,PRC DELEGATED CO-COMMISSIONING,ELM LANE SURGERY,34000876,"4,787.76",QUASPG,S5 7TW
Department of Health,NHS Sheffield CCG,9/30/2020,Cont Care-Physical Disab (<65),CHC ADULT FULLY FUNDED,FAIRWINDS HEALTH CARE LTD,33793550,"34,577.05",CHC SCHEDULE SEPTEMBER 2020 - Fairwinds Nursing Home,S61 1AJ
Department of Health,NHS Sheffield CCG,9/30/2020,C&M-PMS Contract Value,PRC DELEGATED CO-COMMISSIONING,FALKLAND HOUSE,33825247,"26,529.43",BABALP,S11 7PL
Department of Health,NHS Sheffield CCG,9/30/2020,C&M-PMS Funding Differential Review,PRC DELEGATED CO-COMMISSIONING,FALKLAND HOUSE,33825247,358.89,ZFUNFP,S11 7PL
Department of Health,NHS Sheffield CCG,9/30/2020,C&M-PMS Out of Hours Opt Outs,PRC DELEGATED CO-COMMISSIONING,FALKLAND HOUSE,33825247,8.04,APMOOH,S11 7PL
Department of Health,NHS Sheffield CCG,9/30/2020,C&M-PMS PCN DES Participation,PRC DELEGATED CO-COMMISSIONING,FALKLAND HOUSE,33825247,497.02,PARTIP,S11 7PL
Department of Health,NHS Sheffield CCG,9/30/2020,C&M-PMS PCO Other,PRC DELEGATED CO-COMMISSIONING,FALKLAND HOUSE,33825247,276.50,CQCRP,S11 7PL
Department of Health,NHS Sheffield CCG,9/30/2020,C&M-PMS Prem Notional Rent,PRC DELEGATED CO-COMMISSIONING,FALKLAND HOUSE,33825247,"1,866.67",NRENT,S11 7PL
Department of Health,NHS Sheffield CCG,9/30/2020,C&M-PMS Prem Rates,PRC DELEGATED CO-COMMISSIONING,FALKLAND HOUSE,33825247,786.00,RANDRP,S11 7PL
Department of Health,NHS Sheffield CCG,9/30/2020,C&M-PMS QOF Aspiration,PRC DELEGATED CO-COMMISSIONING,FALKLAND HOUSE,33825247,"2,962.47",QUASPP,S11 7PL
Department of Health,NHS Sheffield CCG,9/30/2020,C&M-GMS Cost of Drugs -Prescribing,LOCAL ENHANCED SERVICES,FAR LANE MEDICAL CENTRE,34000885,112.19,DRGP,S6 4FA
Department of Health,NHS Sheffield CCG,9/30/2020,C&M-GMS Global Sum,PRC DELEGATED CO-COMMISSIONING,FAR LANE MEDICAL CENTRE,34000885,"57,503.63",GSUMG,S6 4FA
Department of Health,NHS Sheffield CCG,9/30/2020,C&M-GMS PCN DES Participation,PRC DELEGATED CO-COMMISSIONING,FAR LANE MEDICAL CENTRE,34000885,"1,137.91",PARTIG,S6 4FA
Department of Health,NHS Sheffield CCG,9/30/2020,C&M-GMS PCO Other,PRC DELEGATED CO-COMMISSIONING,FAR LANE MEDICAL CENTRE,34000885,460.10,CQCRG,S6 4FA
Department of Health,NHS Sheffield CCG,9/30/2020,C&M-GMS Prem Notional Rent,PRC DELEGATED CO-COMMISSIONING,FAR LANE MEDICAL CENTRE,34000885,"3,504.17",NRENT,S6 4FA
Department of Health,NHS Sheffield CCG,9/30/2020,C&M-GMS Prem Rates,PRC DELEGATED CO-COMMISSIONING,FAR LANE MEDICAL CENTRE,34000885,"1,277.00",RANDR,S6 4FA
Department of Health,NHS Sheffield CCG,9/30/2020,C&M-GMS Prof Fees Prescribing,PRC DELEGATED CO-COMMISSIONING,FAR LANE MEDICAL CENTRE,34000885,18.42,DRGPPF,S6 4FA
Department of Health,NHS Sheffield CCG,9/30/2020,C&M-GMS QOF Aspiration,PRC DELEGATED CO-COMMISSIONING,FAR LANE MEDICAL CENTRE,34000885,"6,055.38",QUASPG,S6 4FA
Department of Health,NHS Sheffield CCG,9/30/2020,C&M-PMS Contract Value,PRC DELEGATED CO-COMMISSIONING,FIRTH PARK SURGERY,33825245,"77,434.62",BABALP,S5 6HH
Department of Health,NHS Sheffield CCG,9/30/2020,C&M-PMS Out of Hours Opt Outs,PRC DELEGATED CO-COMMISSIONING,FIRTH PARK SURGERY,33825245,7.50,APMOOH,S5 6HH
Department of Health,NHS Sheffield CCG,9/30/2020,C&M-PMS PCN DES Participation,PRC DELEGATED CO-COMMISSIONING,FIRTH PARK SURGERY,33825245,"1,453.48",PARTIP,S5 6HH
Department of Health,NHS Sheffield CCG,9/30/2020,C&M-PMS PCO Locum Adop/Pat/Mat,PRC DELEGATED CO-COMMISSIONING,FIRTH PARK SURGERY,33825245,"16,436.40",SICKC,S5 6HH
Department of Health,NHS Sheffield CCG,9/30/2020,C&M-PMS Prem Notional Rent,PRC DELEGATED CO-COMMISSIONING,FIRTH PARK SURGERY,33825245,"4,500.00",NRENT,S5 6HH
Department of Health,NHS Sheffield CCG,9/30/2020,C&M-PMS Prem Rates,PRC DELEGATED CO-COMMISSIONING,FIRTH PARK SURGERY,33825245,"1,844.00",RANDRP,S5 6HH
Department of Health,NHS Sheffield CCG,9/30/2020,C&M-PMS QOF Aspiration,PRC DELEGATED CO-COMMISSIONING,FIRTH PARK SURGERY,33825245,"7,425.15",QUASPP,S5 6HH
Department of Health,NHS Sheffield CCG,9/30/2020,C&M-PMS Contract Value,PRC DELEGATED CO-COMMISSIONING,FORGE HEALTH GROUP,33825293,"-2,352.86",BABALP,S3 9DL
Department of Health,NHS Sheffield CCG,9/30/2020,C&M-PMS DES Extended Hours Access,PRC DELEGATED CO-COMMISSIONING,FORGE HEALTH GROUP,33825293,"-6,849.44",EXTHDP,S3 9DL
Department of Health,NHS Sheffield CCG,9/30/2020,C&M-PMS GP Statutory Levy,PRC DELEGATED CO-COMMISSIONING,FORGE HEALTH GROUP,33825293,-515.73,STATL,S3 9DL
Department of Health,NHS Sheffield CCG,9/30/2020,C&M-PMS Out of Hours Opt Outs,PRC DELEGATED CO-COMMISSIONING,FORGE HEALTH GROUP,33825293,"-5,849.43",APMOOH,S3 9DL
Department of Health,NHS Sheffield CCG,9/30/2020,C&M-PMS PCN DES Clinical Director,PRC DELEGATED CO-COMMISSIONING,FORGE HEALTH GROUP,33825293,"-3,410.55",CLINDP,S3 9DL
Department of Health,NHS Sheffield CCG,9/30/2020,C&M-PMS PCN DES PCN support,LOCAL ENHANCED SERVICES,FORGE HEALTH GROUP,33825293,"-7,085.63",PCNSUP,S3 9DL
Department of Health,NHS Sheffield CCG,9/30/2020,C&M-PMS PCN DES Participation,PRC DELEGATED CO-COMMISSIONING,FORGE HEALTH GROUP,33825293,"-2,286.18",PARTIP,S3 9DL
Department of Health,NHS Sheffield CCG,9/30/2020,C&M-PMS Prem Notional Rent,PRC DELEGATED CO-COMMISSIONING,FORGE HEALTH GROUP,33825293,"-1,589.77",NRENT,S3 9DL
Department of Health,NHS Sheffield CCG,9/30/2020,C&M-PCN DES Support Payment,PRC DELEGATED CO-COMMISSIONING,FORGE HEALTH GROUP,33825294,"2,630.02",SUPPPP,S3 9DL
Department of Health,NHS Sheffield CCG,9/30/2020,C&M-PMS Contract Value,PRC DELEGATED CO-COMMISSIONING,FORGE HEALTH GROUP,33825294,"123,040.99",BABALP,S3 9DL
Department of Health,NHS Sheffield CCG,9/30/2020,C&M-PMS DES Extended Hours Access,PRC DELEGATED CO-COMMISSIONING,FORGE HEALTH GROUP,33825294,"13,708.33",EXTHDP,S3 9DL
Department of Health,NHS Sheffield CCG,9/30/2020,C&M-PMS DES Learn Dsblty Hlth Chk,PRC DELEGATED CO-COMMISSIONING,FORGE HEALTH GROUP,33825294,"1,400.00",LEARNP,S3 9DL
Department of Health,NHS Sheffield CCG,9/30/2020,C&M-PMS Funding Differential Review,PRC DELEGATED CO-COMMISSIONING,FORGE HEALTH GROUP,33825294,"1,206.61",ZFUNFP,S3 9DL
Department of Health,NHS Sheffield CCG,9/30/2020,C&M-PMS Out of Hours Opt Outs,PRC DELEGATED CO-COMMISSIONING,FORGE HEALTH GROUP,33825294,112.28,APMOOH,S3 9DL
Department of Health,NHS Sheffield CCG,9/30/2020,C&M-PMS PCN DES Clinical Director,PRC DELEGATED CO-COMMISSIONING,FORGE HEALTH GROUP,33825294,"6,811.65",CLINDP,S3 9DL
Department of Health,NHS Sheffield CCG,9/30/2020,C&M-PMS PCN DES PCN support,LOCAL ENHANCED SERVICES,FORGE HEALTH GROUP,33825294,"14,171.26",PCNSUP,S3 9DL
Department of Health,NHS Sheffield CCG,9/30/2020,C&M-PMS PCN DES Participation,PRC DELEGATED CO-COMMISSIONING,FORGE HEALTH GROUP,33825294,"2,286.18",PARTIP,S3 9DL
Department of Health,NHS Sheffield CCG,9/30/2020,C&M-PMS Prem Healthcentre Rent,PRC DELEGATED CO-COMMISSIONING,FORGE HEALTH GROUP,33825294,"35,472.33",HEALTH,S3 9DL
Department of Health,NHS Sheffield CCG,9/30/2020,C&M-PMS Prem Notional Rent,PRC DELEGATED CO-COMMISSIONING,FORGE HEALTH GROUP,33825294,"9,650.00",NRENT,S3 9DL
Department of Health,NHS Sheffield CCG,9/30/2020,C&M-PMS Prem Rates,PRC DELEGATED CO-COMMISSIONING,FORGE HEALTH GROUP,33825294,"2,370.00",RANDRP,S3 9DL
Department of Health,NHS Sheffield CCG,9/30/2020,C&M-PMS Prem Water Rates,PRC DELEGATED CO-COMMISSIONING,FORGE HEALTH GROUP,33825294,932.92,RAMWP,S3 9DL
Department of Health,NHS Sheffield CCG,9/30/2020,C&M-PMS QOF Aspiration,PRC DELEGATED CO-COMMISSIONING,FORGE HEALTH GROUP,33825294,"11,197.01",QUASPP,S3 9DL
Department of Health,NHS Sheffield CCG,9/30/2020,Cont Care-Physical Disab (<65),CHC ADULT FULLY FUNDED,FOUR SEASONS HEALTH CARE LTD,33793545,"48,840.62",CHC SCHEDULE SEPTEMBER 2020 - Balmoral Nursing Home (Four Seasons HC),DL1 1RW
Department of Health,NHS Sheffield CCG,9/30/2020,C&M-PMS Contract Value,PRC DELEGATED CO-COMMISSIONING,FOXHILL MEDICAL CENTRE SHEFFIELD,33825292,"52,261.18",BABALP,S6 1GA
Department of Health,NHS Sheffield CCG,9/30/2020,C&M-PMS Funding Differential Review,PRC DELEGATED CO-COMMISSIONING,FOXHILL MEDICAL CENTRE SHEFFIELD,33825292,"1,157.94",ZFUNFP,S6 1GA
Department of Health,NHS Sheffield CCG,9/30/2020,C&M-PMS Out of Hours Opt Outs,PRC DELEGATED CO-COMMISSIONING,FOXHILL MEDICAL CENTRE SHEFFIELD,33825292,35.24,APMOOH,S6 1GA
Department of Health,NHS Sheffield CCG,9/30/2020,C&M-PMS PCN DES Participation,PRC DELEGATED CO-COMMISSIONING,FOXHILL MEDICAL CENTRE SHEFFIELD,33825292,980.95,PARTIP,S6 1GA
Department of Health,NHS Sheffield CCG,9/30/2020,C&M-PMS PCO Other,PRC DELEGATED CO-COMMISSIONING,FOXHILL MEDICAL CENTRE SHEFFIELD,33825292,400.50,CQCRP,S6 1GA
Department of Health,NHS Sheffield CCG,9/30/2020,C&M-PMS Prem Healthcentre Rent,PRC DELEGATED CO-COMMISSIONING,FOXHILL MEDICAL CENTRE SHEFFIELD,33825292,"47,880.58",HEALTH,S6 1GA
Department of Health,NHS Sheffield CCG,9/30/2020,C&M-PMS QOF Aspiration,PRC DELEGATED CO-COMMISSIONING,FOXHILL MEDICAL CENTRE SHEFFIELD,33825292,"5,429.40",QUASPP,S6 1GA
Department of Health,NHS Sheffield CCG,9/30/2020,C&M-PMS Contract Value,PRC DELEGATED CO-COMMISSIONING,GLEADLESS MEDICAL CENTRE,33825249,"70,031.27",BABALP,S14 1PQ
Department of Health,NHS Sheffield CCG,9/30/2020,C&M-PMS Funding Differential Review,PRC DELEGATED CO-COMMISSIONING,GLEADLESS MEDICAL CENTRE,33825249,"1,547.97",ZFUNFP,S14 1PQ
Department of Health,NHS Sheffield CCG,9/30/2020,C&M-PMS Out of Hours Opt Outs,PRC DELEGATED CO-COMMISSIONING,GLEADLESS MEDICAL CENTRE,33825249,76.94,APMOOH,S14 1PQ
Department of Health,NHS Sheffield CCG,9/30/2020,C&M-PMS PCN DES Participation,PRC DELEGATED CO-COMMISSIONING,GLEADLESS MEDICAL CENTRE,33825249,"1,315.26",PARTIP,S14 1PQ
Department of Health,NHS Sheffield CCG,9/30/2020,C&M-PMS PCO Other,PRC DELEGATED CO-COMMISSIONING,GLEADLESS MEDICAL CENTRE,33825249,559.20,CQCRP,S14 1PQ
Department of Health,NHS Sheffield CCG,9/30/2020,C&M-PMS Prem Notional Rent,PRC DELEGATED CO-COMMISSIONING,GLEADLESS MEDICAL CENTRE,33825249,"6,750.00",NRENT,S14 1PQ
Department of Health,NHS Sheffield CCG,9/30/2020,C&M-PMS Prem Rates,PRC DELEGATED CO-COMMISSIONING,GLEADLESS MEDICAL CENTRE,33825249,"1,684.00",RANDRP,S14 1PQ
Department of Health,NHS Sheffield CCG,9/30/2020,C&M-PMS QOF Aspiration,PRC DELEGATED CO-COMMISSIONING,GLEADLESS MEDICAL CENTRE,33825249,"7,390.52",QUASPP,S14 1PQ
Department of Health,NHS Sheffield CCG,9/30/2020,C&M-GMS DES Learn Dsblty Hlth Chk,PRC DELEGATED CO-COMMISSIONING,GRENOSIDE SURGERY,34000893,"3,220.00",LEARNG,S35 8NX
Department of Health,NHS Sheffield CCG,9/30/2020,C&M-GMS Global Sum,PRC DELEGATED CO-COMMISSIONING,GRENOSIDE SURGERY,34000893,"62,567.80",GSUMG,S35 8NX
Department of Health,NHS Sheffield CCG,9/30/2020,C&M-GMS PCN DES Participation,PRC DELEGATED CO-COMMISSIONING,GRENOSIDE SURGERY,34000893,"1,220.08",PARTIG,S35 8NX
Department of Health,NHS Sheffield CCG,9/30/2020,C&M-GMS PCO Locum Sickness,PRC DELEGATED CO-COMMISSIONING,GRENOSIDE SURGERY,34000893,"4,475.56",LOCSIG,S35 8NX
Department of Health,NHS Sheffield CCG,9/30/2020,C&M-GMS Prem Notional Rent,PRC DELEGATED CO-COMMISSIONING,GRENOSIDE SURGERY,34000893,"8,110.42",NRENT,S35 8NX
Department of Health,NHS Sheffield CCG,9/30/2020,C&M-GMS Prem Rates,PRC DELEGATED CO-COMMISSIONING,GRENOSIDE SURGERY,34000893,"2,109.00",RANDR,S35 8NX
Department of Health,NHS Sheffield CCG,9/30/2020,C&M-GMS QOF Aspiration,PRC DELEGATED CO-COMMISSIONING,GRENOSIDE SURGERY,34000893,"5,840.97",QUASPG,S35 8NX
Department of Health,NHS Sheffield CCG,9/30/2020,C&M-GMS Global Sum,PRC DELEGATED CO-COMMISSIONING,GREYSTONES MEDICAL CENTRE,34000895,"20,330.80",GSUMG,S11 7BJ
Department of Health,NHS Sheffield CCG,9/30/2020,C&M-GMS PCN DES Participation,PRC DELEGATED CO-COMMISSIONING,GREYSTONES MEDICAL CENTRE,34000895,406.83,PARTIG,S11 7BJ
Department of Health,NHS Sheffield CCG,9/30/2020,C&M-GMS PCO Other,PRC DELEGATED CO-COMMISSIONING,GREYSTONES MEDICAL CENTRE,34000895,264.20,CQCRG,S11 7BJ
Department of Health,NHS Sheffield CCG,9/30/2020,C&M-GMS Prem Notional Rent,PRC DELEGATED CO-COMMISSIONING,GREYSTONES MEDICAL CENTRE,34000895,"2,885.42",NRENT,S11 7BJ
Department of Health,NHS Sheffield CCG,9/30/2020,C&M-GMS Prem Rates,PRC DELEGATED CO-COMMISSIONING,GREYSTONES MEDICAL CENTRE,34000895,707.00,RANDR,S11 7BJ
Department of Health,NHS Sheffield CCG,9/30/2020,C&M-GMS QOF Aspiration,PRC DELEGATED CO-COMMISSIONING,GREYSTONES MEDICAL CENTRE,34000895,"2,326.23",QUASPG,S11 7BJ
Department of Health,NHS Sheffield CCG,9/30/2020,C&M-PMS Contract Value,PRC DELEGATED CO-COMMISSIONING,HACKENTHORPE MEDICAL CENTRE,33825251,"49,400.20",BABALP,S12 4LA
Department of Health,NHS Sheffield CCG,9/30/2020,C&M-PMS Funding Differential Review,PRC DELEGATED CO-COMMISSIONING,HACKENTHORPE MEDICAL CENTRE,33825251,881.57,ZFUNFP,S12 4LA
Department of Health,NHS Sheffield CCG,9/30/2020,C&M-PMS Out of Hours Opt Outs,PRC DELEGATED CO-COMMISSIONING,HACKENTHORPE MEDICAL CENTRE,33825251,37.89,APMOOH,S12 4LA
Department of Health,NHS Sheffield CCG,9/30/2020,C&M-PMS PCN DES Participation,PRC DELEGATED CO-COMMISSIONING,HACKENTHORPE MEDICAL CENTRE,33825251,925.92,PARTIP,S12 4LA
Department of Health,NHS Sheffield CCG,9/30/2020,C&M-PMS PCO Other,PRC DELEGATED CO-COMMISSIONING,HACKENTHORPE MEDICAL CENTRE,33825251,435.70,CQCRP,S12 4LA
Department of Health,NHS Sheffield CCG,9/30/2020,C&M-PMS Prem Notional Rent,PRC DELEGATED CO-COMMISSIONING,HACKENTHORPE MEDICAL CENTRE,33825251,"5,116.67",NRENT,S12 4LA
Department of Health,NHS Sheffield CCG,9/30/2020,C&M-PMS Prem Rates,PRC DELEGATED CO-COMMISSIONING,HACKENTHORPE MEDICAL CENTRE,33825251,"1,385.00",RANDRP,S12 4LA
Department of Health,NHS Sheffield CCG,9/30/2020,C&M-PMS QOF Aspiration,PRC DELEGATED CO-COMMISSIONING,HACKENTHORPE MEDICAL CENTRE,33825251,"6,490.74",QUASPP,S12 4LA
Department of Health,NHS Sheffield CCG,9/30/2020,C&M-GMS Cost of Drugs -Prescribing,LOCAL ENHANCED SERVICES,HANDSWORTH MEDICAL PRACTICE SHEFFIELD,34000891,293.31,DRGP,S13 9BZ
Department of Health,NHS Sheffield CCG,9/30/2020,C&M-GMS Global Sum,PRC DELEGATED CO-COMMISSIONING,HANDSWORTH MEDICAL PRACTICE SHEFFIELD,34000891,"81,962.64",GSUMG,S13 9BZ
Department of Health,NHS Sheffield CCG,9/30/2020,C&M-GMS PCN DES Participation,PRC DELEGATED CO-COMMISSIONING,HANDSWORTH MEDICAL PRACTICE SHEFFIELD,34000891,"1,599.78",PARTIG,S13 9BZ
Department of Health,NHS Sheffield CCG,9/30/2020,C&M-GMS Prem Notional Rent,PRC DELEGATED CO-COMMISSIONING,HANDSWORTH MEDICAL PRACTICE SHEFFIELD,34000891,"3,321.66",NRENT,S13 9BZ
Department of Health,NHS Sheffield CCG,9/30/2020,C&M-GMS Prem Rates,PRC DELEGATED CO-COMMISSIONING,HANDSWORTH MEDICAL PRACTICE SHEFFIELD,34000891,"1,299.80",RANDR,S13 9BZ
Department of Health,NHS Sheffield CCG,9/30/2020,C&M-GMS Prof Fees Prescribing,PRC DELEGATED CO-COMMISSIONING,HANDSWORTH MEDICAL PRACTICE SHEFFIELD,34000891,115.15,DRGPPF,S13 9BZ
Department of Health,NHS Sheffield CCG,9/30/2020,C&M-GMS QOF Aspiration,PRC DELEGATED CO-COMMISSIONING,HANDSWORTH MEDICAL PRACTICE SHEFFIELD,34000891,"7,866.23",QUASPG,S13 9BZ
Department of Health,NHS Sheffield CCG,9/30/2020,C&M-GMS Global Sum,PRC DELEGATED CO-COMMISSIONING,HAROLD STREET MEDICAL CENTRE,34000888,"20,199.75",GSUMG,S6 3QW
Department of Health,NHS Sheffield CCG,9/30/2020,C&M-GMS PCN DES Participation,PRC DELEGATED CO-COMMISSIONING,HAROLD STREET MEDICAL CENTRE,34000888,405.11,PARTIG,S6 3QW
Department of Health,NHS Sheffield CCG,9/30/2020,C&M-GMS PCO Other,PRC DELEGATED CO-COMMISSIONING,HAROLD STREET MEDICAL CENTRE,34000888,218.90,CQCRG,S6 3QW
Department of Health,NHS Sheffield CCG,9/30/2020,C&M-GMS Prem Notional Rent,PRC DELEGATED CO-COMMISSIONING,HAROLD STREET MEDICAL CENTRE,34000888,"2,337.50",NRENT,S6 3QW
Department of Health,NHS Sheffield CCG,9/30/2020,C&M-GMS QOF Aspiration,PRC DELEGATED CO-COMMISSIONING,HAROLD STREET MEDICAL CENTRE,34000888,"2,231.83",QUASPG,S6 3QW
Department of Health,NHS Sheffield CCG,9/30/2020,Cont Care-Physical Disab (<65),CHC ADULT FULLY FUNDED,HC ONE LTD,33793575,"26,599.76",CHC SCHEDULE SEPTEMBER 2020 - Ascot Lodge Nursing Home (HC One),DL3 6AH
Department of Health,NHS Sheffield CCG,9/30/2020,C&M-GMS Cost of Drugs -Prescribing,LOCAL ENHANCED SERVICES,HEALTH CARE SURGERY,34000901,393.28,DRGP,S5 8GS
Department of Health,NHS Sheffield CCG,9/30/2020,C&M-GMS Global Sum,PRC DELEGATED CO-COMMISSIONING,HEALTH CARE SURGERY,34000901,"40,758.22",GSUMG,S5 8GS
Department of Health,NHS Sheffield CCG,9/30/2020,C&M-GMS PCN DES Participation,PRC DELEGATED CO-COMMISSIONING,HEALTH CARE SURGERY,34000901,802.32,PARTIG,S5 8GS
Department of Health,NHS Sheffield CCG,9/30/2020,C&M-GMS PCO Other,PRC DELEGATED CO-COMMISSIONING,HEALTH CARE SURGERY,34000901,337.00,CQCRG,S5 8GS
Department of Health,NHS Sheffield CCG,9/30/2020,C&M-GMS Prem Notional Rent,PRC DELEGATED CO-COMMISSIONING,HEALTH CARE SURGERY,34000901,"3,862.50",NRENT,S5 8GS
Department of Health,NHS Sheffield CCG,9/30/2020,C&M-GMS Prem Rates,PRC DELEGATED CO-COMMISSIONING,HEALTH CARE SURGERY,34000901,755.00,RANDR,S5 8GS
Department of Health,NHS Sheffield CCG,9/30/2020,C&M-GMS Prof Fees Prescribing,PRC DELEGATED CO-COMMISSIONING,HEALTH CARE SURGERY,34000901,78.31,DRGPPF,S5 8GS
Department of Health,NHS Sheffield CCG,9/30/2020,C&M-GMS QOF Aspiration,PRC DELEGATED CO-COMMISSIONING,HEALTH CARE SURGERY,34000901,"4,354.34",QUASPG,S5 8GS
Department of Health,NHS Sheffield CCG,9/30/2020,C&M-GMS Cost of Drugs -Prescribing,LOCAL ENHANCED SERVICES,HEELEY GREEN SURGERY,34000897,796.71,DRGP,S2 3AJ
Department of Health,NHS Sheffield CCG,9/30/2020,C&M-GMS Global Sum,PRC DELEGATED CO-COMMISSIONING,HEELEY GREEN SURGERY,34000897,"42,970.44",GSUMG,S2 3AJ
Department of Health,NHS Sheffield CCG,9/30/2020,C&M-GMS PCN DES Participation,PRC DELEGATED CO-COMMISSIONING,HEELEY GREEN SURGERY,34000897,857.46,PARTIG,S2 3AJ
Department of Health,NHS Sheffield CCG,9/30/2020,C&M-GMS Prem Notional Rent,PRC DELEGATED CO-COMMISSIONING,HEELEY GREEN SURGERY,34000897,"3,254.17",NRENT,S2 3AJ
Department of Health,NHS Sheffield CCG,9/30/2020,C&M-GMS Prof Fees Prescribing,PRC DELEGATED CO-COMMISSIONING,HEELEY GREEN SURGERY,34000897,73.69,DRGPPF,S2 3AJ
Department of Health,NHS Sheffield CCG,9/30/2020,C&M-GMS QOF Aspiration,PRC DELEGATED CO-COMMISSIONING,HEELEY GREEN SURGERY,34000897,"4,729.13",QUASPG,S2 3AJ
Department of Health,NHS Sheffield CCG,9/30/2020,C&M-GMS Cost of Drugs -Prescribing,LOCAL ENHANCED SERVICES,HOLLIES MEDICAL CENTRE,34000899,"1,218.56",DRGP,S11 9AL
Department of Health,NHS Sheffield CCG,9/30/2020,C&M-GMS Global Sum,PRC DELEGATED CO-COMMISSIONING,HOLLIES MEDICAL CENTRE,34000899,"64,229.97",GSUMG,S11 9AL
Department of Health,NHS Sheffield CCG,9/30/2020,C&M-GMS PCN DES Participation,PRC DELEGATED CO-COMMISSIONING,HOLLIES MEDICAL CENTRE,34000899,"1,246.56",PARTIG,S11 9AL
Department of Health,NHS Sheffield CCG,9/30/2020,C&M-GMS PCO Other,PRC DELEGATED CO-COMMISSIONING,HOLLIES MEDICAL CENTRE,34000899,608.70,CQCRG,S11 9AL
Department of Health,NHS Sheffield CCG,9/30/2020,C&M-GMS Prem Notional Rent,PRC DELEGATED CO-COMMISSIONING,HOLLIES MEDICAL CENTRE,34000899,"3,229.17",NRENT,S11 9AL
Department of Health,NHS Sheffield CCG,9/30/2020,C&M-GMS Prem Rates,PRC DELEGATED CO-COMMISSIONING,HOLLIES MEDICAL CENTRE,34000899,"1,818.00",RANDR,S11 9AL
Department of Health,NHS Sheffield CCG,9/30/2020,C&M-GMS Prof Fees Prescribing,PRC DELEGATED CO-COMMISSIONING,HOLLIES MEDICAL CENTRE,34000899,184.25,DRGPPF,S11 9AL
Department of Health,NHS Sheffield CCG,9/30/2020,C&M-GMS QOF Aspiration,PRC DELEGATED CO-COMMISSIONING,HOLLIES MEDICAL CENTRE,34000899,"7,315.52",QUASPG,S11 9AL
Department of Health,NHS Sheffield CCG,9/30/2020,Cont Care-Physical Disab (<65),CHC ADULT FULLY FUNDED,HORIZON CARE HOMES LTD,33793569,"36,216.70",CHC SCHEDULE SEPTEMBER 2020 - Wood Hill Grange (Horizon Care Homes),S25 3QA
Department of Health,NHS Sheffield CCG,9/30/2020,Cont Care-Physical Disab (<65),CHC ADULT FULLY FUNDED,HORIZON CARE HOMES LTD,33793581,"39,991.72",CHC SCHEDULE SEPTEMBER 2020 - Wood Hill House,S25 3QA
Department of Health,NHS Sheffield CCG,9/30/2020,Cont Care-Physical Disab (<65),CHC ADULT FULLY FUNDED,HORIZON CARE HOMES LTD,33793583,"67,049.71",CHC SCHEDULE SEPTEMBER 2020 - Wood Hill Lodge,S25 3QA
Department of Health,NHS Sheffield CCG,9/30/2020,Seconded-Basic Sal-Staff fm oth org,BEREAVEMENT SERVICE,IDEAL HEALTH CONSULTANTS LTD,33988801,"38,400.00",https://nww.einvoice-prod.sbs.nhs.uk:8179/invoicepdf/c0303cec-74df-5704-a9d2-c0090d93be38,GU1 4SJ
Department of Health,NHS Sheffield CCG,9/30/2020,Seconded-Basic Sal-Staff fm oth org,BEREAVEMENT SERVICE,IDEAL HEALTH CONSULTANTS LTD,33988807,"-38,400.00",https://nww.einvoice-prod.sbs.nhs.uk:8179/invoicepdf/0e047f06-fe18-5932-8f83-a92fa8cc1abb,GU1 4SJ
Department of Health,NHS Sheffield CCG,9/30/2020,Seconded-Basic Sal-Staff fm oth org,BEREAVEMENT SERVICE,IDEAL HEALTH CONSULTANTS LTD,33988816,"36,600.00",https://nww.einvoice-prod.sbs.nhs.uk:8179/invoicepdf/05e39066-a2c5-5761-a8c3-4b97b28e6aec,GU1 4SJ
Department of Health,NHS Sheffield CCG,9/30/2020,Cont Care-Physical Disab (<65),CHC ADULT FULLY FUNDED,INLET LTD,33793586,"63,797.49",CHC SCHEDULE SEPTEMBER 2020 - Loxley Court (Inlet Ltd),S48NB
Department of Health,NHS Sheffield CCG,9/30/2020,C&M-PCN DES Support Payment,PRC DELEGATED CO-COMMISSIONING,JAUNTY SPRINGS HEALTH CENTRE,33825253,"1,639.52",SUPPPP,S12 3DZ
Department of Health,NHS Sheffield CCG,9/30/2020,C&M-PMS Contract Value,PRC DELEGATED CO-COMMISSIONING,JAUNTY SPRINGS HEALTH CENTRE,33825253,"31,488.51",BABALP,S12 3DZ
Department of Health,NHS Sheffield CCG,9/30/2020,C&M-PMS DES Extended Hours Access,PRC DELEGATED CO-COMMISSIONING,JAUNTY SPRINGS HEALTH CENTRE,33825253,"8,433.94",EXTHDP,S12 3DZ
Department of Health,NHS Sheffield CCG,9/30/2020,C&M-PMS Funding Differential Review,PRC DELEGATED CO-COMMISSIONING,JAUNTY SPRINGS HEALTH CENTRE,33825253,600.45,ZFUNFP,S12 3DZ
Department of Health,NHS Sheffield CCG,9/30/2020,C&M-PMS Out of Hours Opt Outs,PRC DELEGATED CO-COMMISSIONING,JAUNTY SPRINGS HEALTH CENTRE,33825253,26.47,APMOOH,S12 3DZ
Department of Health,NHS Sheffield CCG,9/30/2020,C&M-PMS PCN DES Clinical Director,PRC DELEGATED CO-COMMISSIONING,JAUNTY SPRINGS HEALTH CENTRE,33825253,"4,190.81",CLINDP,S12 3DZ
Department of Health,NHS Sheffield CCG,9/30/2020,C&M-PMS PCN DES PCN support,LOCAL ENHANCED SERVICES,JAUNTY SPRINGS HEALTH CENTRE,33825253,"8,718.76",PCNSUP,S12 3DZ
Department of Health,NHS Sheffield CCG,9/30/2020,C&M-PMS PCN DES Participation,PRC DELEGATED CO-COMMISSIONING,JAUNTY SPRINGS HEALTH CENTRE,33825253,592.79,PARTIP,S12 3DZ
Department of Health,NHS Sheffield CCG,9/30/2020,C&M-PMS PCO Other,PRC DELEGATED CO-COMMISSIONING,JAUNTY SPRINGS HEALTH CENTRE,33825253,266.60,CQCRP,S12 3DZ
Department of Health,NHS Sheffield CCG,9/30/2020,C&M-PMS Prem Notional Rent,PRC DELEGATED CO-COMMISSIONING,JAUNTY SPRINGS HEALTH CENTRE,33825253,"3,208.33",NRENT,S12 3DZ
Department of Health,NHS Sheffield CCG,9/30/2020,C&M-PMS Prem Rates,PRC DELEGATED CO-COMMISSIONING,JAUNTY SPRINGS HEALTH CENTRE,33825253,830.00,RANDRP,S12 3DZ
Department of Health,NHS Sheffield CCG,9/30/2020,C&M-PMS Prem Water Rates,PRC DELEGATED CO-COMMISSIONING,JAUNTY SPRINGS HEALTH CENTRE,33825253,67.10,RAMWP,S12 3DZ
Department of Health,NHS Sheffield CCG,9/30/2020,C&M-PMS QOF Aspiration,PRC DELEGATED CO-COMMISSIONING,JAUNTY SPRINGS HEALTH CENTRE,33825253,"3,693.16",QUASPP,S12 3DZ
Department of Health,NHS Sheffield CCG,9/30/2020,Hcare Srv Rec NHS Trust-Contract Baseline,ACUTE COMMISSIONING,LEEDS TEACHING HOSPITALS NHS TRUST,33863835,"47,860.51",,LS9 7TF
Department of Health,NHS Sheffield CCG,9/30/2020,Cont Care-Physical Disab (<65),CHC ADULT FULLY FUNDED,LONGLEY HEALTH CARE LTD,33793554,"95,009.34",CHC SCHEDULE SEPTEMBER 2020 - Longley Park View Nursing Home (Exemplar HC),S5 7JZ
Department of Health,NHS Sheffield CCG,9/30/2020,C&M-PMS Contract Value,PRC DELEGATED CO-COMMISSIONING,MANCHESTER ROAD SURGERY SHEFFIELD,33825257,"33,667.68",BABALP,S10 5PN
Department of Health,NHS Sheffield CCG,9/30/2020,C&M-PMS Funding Differential Review,PRC DELEGATED CO-COMMISSIONING,MANCHESTER ROAD SURGERY SHEFFIELD,33825257,604.16,ZFUNFP,S10 5PN
Department of Health,NHS Sheffield CCG,9/30/2020,C&M-PMS Out of Hours Opt Outs,PRC DELEGATED CO-COMMISSIONING,MANCHESTER ROAD SURGERY SHEFFIELD,33825257,4.42,APMOOH,S10 5PN
Department of Health,NHS Sheffield CCG,9/30/2020,C&M-PMS PCN DES Participation,PRC DELEGATED CO-COMMISSIONING,MANCHESTER ROAD SURGERY SHEFFIELD,33825257,631.34,PARTIP,S10 5PN
Department of Health,NHS Sheffield CCG,9/30/2020,C&M-PMS Prem Cost Rent,PRC DELEGATED CO-COMMISSIONING,MANCHESTER ROAD SURGERY SHEFFIELD,33825257,"3,091.46",COST,S10 5PN
Department of Health,NHS Sheffield CCG,9/30/2020,C&M-PMS Prem Notional Rent,PRC DELEGATED CO-COMMISSIONING,MANCHESTER ROAD SURGERY SHEFFIELD,33825257,442.92,NRENT,S10 5PN
Department of Health,NHS Sheffield CCG,9/30/2020,C&M-PMS Prem Rates,PRC DELEGATED CO-COMMISSIONING,MANCHESTER ROAD SURGERY SHEFFIELD,33825257,986.00,RANDRP,S10 5PN
Department of Health,NHS Sheffield CCG,9/30/2020,C&M-PMS Prem Water Rates,PRC DELEGATED CO-COMMISSIONING,MANCHESTER ROAD SURGERY SHEFFIELD,33825257,164.60,RAMWP,S10 5PN
Department of Health,NHS Sheffield CCG,9/30/2020,C&M-PMS QOF Aspiration,PRC DELEGATED CO-COMMISSIONING,MANCHESTER ROAD SURGERY SHEFFIELD,33825257,"3,837.07",QUASPP,S10 5PN
Department of Health,NHS Sheffield CCG,9/30/2020,C&M-PMS Contract Value,PRC DELEGATED CO-COMMISSIONING,MANOR & PARK GROUP PRACTICE,33825023,"73,875.55",BABALP,S2 5QQ
Department of Health,NHS Sheffield CCG,9/30/2020,C&M-PMS Out of Hours Opt Outs,PRC DELEGATED CO-COMMISSIONING,MANOR & PARK GROUP PRACTICE,33825023,145.94,APMOOH,S2 5QQ
Department of Health,NHS Sheffield CCG,9/30/2020,C&M-PMS PCN DES Participation,PRC DELEGATED CO-COMMISSIONING,MANOR & PARK GROUP PRACTICE,33825023,"1,387.49",PARTIP,S2 5QQ
Department of Health,NHS Sheffield CCG,9/30/2020,C&M-PMS Prem Notional Rent,PRC DELEGATED CO-COMMISSIONING,MANOR & PARK GROUP PRACTICE,33825023,"9,050.00",NRENT,S2 5QQ
Department of Health,NHS Sheffield CCG,9/30/2020,C&M-PMS Prem Rates,PRC DELEGATED CO-COMMISSIONING,MANOR & PARK GROUP PRACTICE,33825023,"1,864.00",RANDRP,S2 5QQ
Department of Health,NHS Sheffield CCG,9/30/2020,C&M-PMS Prem Water Rates,PRC DELEGATED CO-COMMISSIONING,MANOR & PARK GROUP PRACTICE,33825023,471.55,RAMWP,S2 5QQ
Department of Health,NHS Sheffield CCG,9/30/2020,C&M-PMS QOF Aspiration,PRC DELEGATED CO-COMMISSIONING,MANOR & PARK GROUP PRACTICE,33825023,"6,093.98",QUASPP,S2 5QQ
Department of Health,NHS Sheffield CCG,9/30/2020,C&M-GMS Global Sum,PRC DELEGATED CO-COMMISSIONING,MATHEWS PRACTICE,34000909,"59,427.26",GSUMG,S2 4UJ
Department of Health,NHS Sheffield CCG,9/30/2020,C&M-GMS PCN DES Participation,PRC DELEGATED CO-COMMISSIONING,MATHEWS PRACTICE,34000909,"1,189.39",PARTIG,S2 4UJ
Department of Health,NHS Sheffield CCG,9/30/2020,C&M-GMS Prem Rates,PRC DELEGATED CO-COMMISSIONING,MATHEWS PRACTICE,34000909,"2,183.00",RANDR,S2 4UJ
Department of Health,NHS Sheffield CCG,9/30/2020,C&M-GMS QOF Aspiration,PRC DELEGATED CO-COMMISSIONING,MATHEWS PRACTICE,34000909,"7,173.28",QUASPG,S2 4UJ
Department of Health,NHS Sheffield CCG,9/30/2020,C&M-PMS Contract Value,PRC DELEGATED CO-COMMISSIONING,MEADOWHEAD GROUP PRACTICE,33825255,"131,544.98",BABALP,S8 7RL
Department of Health,NHS Sheffield CCG,9/30/2020,C&M-PMS Funding Differential Review,PRC DELEGATED CO-COMMISSIONING,MEADOWHEAD GROUP PRACTICE,33825255,"2,003.74",ZFUNFP,S8 7RL
Department of Health,NHS Sheffield CCG,9/30/2020,C&M-PMS Out of Hours Opt Outs,PRC DELEGATED CO-COMMISSIONING,MEADOWHEAD GROUP PRACTICE,33825255,31.09,APMOOH,S8 7RL
Department of Health,NHS Sheffield CCG,9/30/2020,C&M-PMS PCN DES Participation,PRC DELEGATED CO-COMMISSIONING,MEADOWHEAD GROUP PRACTICE,33825255,"2,434.20",PARTIP,S8 7RL
Department of Health,NHS Sheffield CCG,9/30/2020,C&M-PMS PCO Other,PRC DELEGATED CO-COMMISSIONING,MEADOWHEAD GROUP PRACTICE,33825255,456.10,CQCRP,S8 7RL
Department of Health,NHS Sheffield CCG,9/30/2020,C&M-PMS Prem Cost Rent,PRC DELEGATED CO-COMMISSIONING,MEADOWHEAD GROUP PRACTICE,33825255,"3,647.42",COST,S8 7RL
Department of Health,NHS Sheffield CCG,9/30/2020,C&M-PMS Prem Healthcentre Rent,PRC DELEGATED CO-COMMISSIONING,MEADOWHEAD GROUP PRACTICE,33825255,"41,665.03",HEALTH,S8 7RL
Department of Health,NHS Sheffield CCG,9/30/2020,C&M-PMS Prem Notional Rent,PRC DELEGATED CO-COMMISSIONING,MEADOWHEAD GROUP PRACTICE,33825255,"8,905.00",NRENT,S8 7RL
Department of Health,NHS Sheffield CCG,9/30/2020,C&M-PMS Prem Rates,PRC DELEGATED CO-COMMISSIONING,MEADOWHEAD GROUP PRACTICE,33825255,"3,253.00",RANDRP,S8 7RL
Department of Health,NHS Sheffield CCG,9/30/2020,C&M-PMS Prem Water Rates,PRC DELEGATED CO-COMMISSIONING,MEADOWHEAD GROUP PRACTICE,33825255,162.80,RAMWP,S8 7RL
Department of Health,NHS Sheffield CCG,9/30/2020,C&M-PMS QOF Aspiration,PRC DELEGATED CO-COMMISSIONING,MEADOWHEAD GROUP PRACTICE,33825255,"13,628.37",QUASPP,S8 7RL
Department of Health,NHS Sheffield CCG,9/30/2020,C&M-GMS Cost of Drugs -Prescribing,LOCAL ENHANCED SERVICES,MEDICAL CENTRE CRYSTAL PEAKS,34000905,"1,018.02",DRGP,S20 7HZ
Department of Health,NHS Sheffield CCG,9/30/2020,C&M-GMS Global Sum,PRC DELEGATED CO-COMMISSIONING,MEDICAL CENTRE CRYSTAL PEAKS,34000905,"49,607.02",GSUMG,S20 7HZ
Department of Health,NHS Sheffield CCG,9/30/2020,C&M-GMS PCN DES Participation,PRC DELEGATED CO-COMMISSIONING,MEDICAL CENTRE CRYSTAL PEAKS,34000905,973.29,PARTIG,S20 7HZ
Department of Health,NHS Sheffield CCG,9/30/2020,C&M-GMS PCO Locum Sickness,PRC DELEGATED CO-COMMISSIONING,MEDICAL CENTRE CRYSTAL PEAKS,34000905,"29,761.33",LOCSIG,S20 7HZ
Department of Health,NHS Sheffield CCG,9/30/2020,C&M-GMS PCO Other,PRC DELEGATED CO-COMMISSIONING,MEDICAL CENTRE CRYSTAL PEAKS,34000905,431.60,CQCRG,S20 7HZ
Department of Health,NHS Sheffield CCG,9/30/2020,C&M-GMS Prem Notional Rent,PRC DELEGATED CO-COMMISSIONING,MEDICAL CENTRE CRYSTAL PEAKS,34000905,270.00,NRENT,S20 7HZ
Department of Health,NHS Sheffield CCG,9/30/2020,C&M-GMS Prem Rates,PRC DELEGATED CO-COMMISSIONING,MEDICAL CENTRE CRYSTAL PEAKS,34000905,"1,073.00",RANDR,S20 7HZ
Department of Health,NHS Sheffield CCG,9/30/2020,C&M-GMS Prof Fees Prescribing,PRC DELEGATED CO-COMMISSIONING,MEDICAL CENTRE CRYSTAL PEAKS,34000905,391.52,DRGPPF,S20 7HZ
Department of Health,NHS Sheffield CCG,9/30/2020,C&M-GMS QOF Aspiration,PRC DELEGATED CO-COMMISSIONING,MEDICAL CENTRE CRYSTAL PEAKS,34000905,"6,365.03",QUASPG,S20 7HZ
Department of Health,NHS Sheffield CCG,9/30/2020,C&M-GMS Cost of Drugs -Prescribing,LOCAL ENHANCED SERVICES,MILL ROAD SURGERY SHEFFIELD,34000912,787.09,DRGP,S35 9XQ
Department of Health,NHS Sheffield CCG,9/30/2020,C&M-GMS Global Sum,PRC DELEGATED CO-COMMISSIONING,MILL ROAD SURGERY SHEFFIELD,34000912,"42,019.66",GSUMG,S35 9XQ
Department of Health,NHS Sheffield CCG,9/30/2020,C&M-GMS PCN DES Participation,PRC DELEGATED CO-COMMISSIONING,MILL ROAD SURGERY SHEFFIELD,34000912,834.04,PARTIG,S35 9XQ
Department of Health,NHS Sheffield CCG,9/30/2020,C&M-GMS PCO Other,PRC DELEGATED CO-COMMISSIONING,MILL ROAD SURGERY SHEFFIELD,34000912,352.00,CQCRG,S35 9XQ
Department of Health,NHS Sheffield CCG,9/30/2020,C&M-GMS Prem Notional Rent,PRC DELEGATED CO-COMMISSIONING,MILL ROAD SURGERY SHEFFIELD,34000912,"4,593.33",NRENT,S35 9XQ
Department of Health,NHS Sheffield CCG,9/30/2020,C&M-GMS Prem Rates,PRC DELEGATED CO-COMMISSIONING,MILL ROAD SURGERY SHEFFIELD,34000912,"1,073.00",RANDR,S35 9XQ
Department of Health,NHS Sheffield CCG,9/30/2020,C&M-GMS Prof Fees Prescribing,PRC DELEGATED CO-COMMISSIONING,MILL ROAD SURGERY SHEFFIELD,34000912,94.43,DRGPPF,S35 9XQ
Department of Health,NHS Sheffield CCG,9/30/2020,C&M-GMS QOF Aspiration,PRC DELEGATED CO-COMMISSIONING,MILL ROAD SURGERY SHEFFIELD,34000912,"5,109.19",QUASPG,S35 9XQ
Department of Health,NHS Sheffield CCG,9/30/2020,Clinical&Medical-Independent Sector,Mental Health Services - S117 Mental Health,MOORVILLE RESIDENTIAL,33861513,"28,900.42",,S10 5FA
Department of Health,NHS Sheffield CCG,9/30/2020,Cont Care-Learning Disab(<65),CHC ADULT FULLY FUNDED,MOORVILLE RESIDENTIAL,33861513,"9,119.40",https://nww.einvoice-prod.sbs.nhs.uk:8179/invoicepdf/ce430312-a1c8-5cfc-8e11-b55a830d7995,S10 5FA
Department of Health,NHS Sheffield CCG,9/30/2020,Cont Care-Learning Disab(<65),CHC ADULT JOINT FUNDED,MOORVILLE RESIDENTIAL,33861513,"4,193.40",,S10 5FA
Department of Health,NHS Sheffield CCG,9/30/2020,Cont Care-Mental Health (<65),CHC ADULT JOINT FUNDED,MOORVILLE RESIDENTIAL,33861513,489.90,,S10 5FA
Department of Health,NHS Sheffield CCG,9/30/2020,C&M-PMS Contract Value,PRC DELEGATED CO-COMMISSIONING,MOSBOROUGH HEALTH CENTRE,33825259,"51,666.24",BABALP,S20 5BQ
Department of Health,NHS Sheffield CCG,9/30/2020,C&M-PMS DES Learn Dsblty Hlth Chk,PRC DELEGATED CO-COMMISSIONING,MOSBOROUGH HEALTH CENTRE,33825259,140.00,LEARNP,S20 5BQ
Department of Health,NHS Sheffield CCG,9/30/2020,C&M-PMS Funding Differential Review,PRC DELEGATED CO-COMMISSIONING,MOSBOROUGH HEALTH CENTRE,33825259,891.89,ZFUNFP,S20 5BQ
Department of Health,NHS Sheffield CCG,9/30/2020,C&M-PMS PCN DES Participation,PRC DELEGATED CO-COMMISSIONING,MOSBOROUGH HEALTH CENTRE,33825259,955.17,PARTIP,S20 5BQ
Department of Health,NHS Sheffield CCG,9/30/2020,C&M-PMS Prem Notional Rent,PRC DELEGATED CO-COMMISSIONING,MOSBOROUGH HEALTH CENTRE,33825259,"4,091.67",NRENT,S20 5BQ
Department of Health,NHS Sheffield CCG,9/30/2020,C&M-PMS Prem Rates,PRC DELEGATED CO-COMMISSIONING,MOSBOROUGH HEALTH CENTRE,33825259,"1,604.00",RANDRP,S20 5BQ
Department of Health,NHS Sheffield CCG,9/30/2020,C&M-PMS QOF Aspiration,PRC DELEGATED CO-COMMISSIONING,MOSBOROUGH HEALTH CENTRE,33825259,"5,629.90",QUASPP,S20 5BQ
Department of Health,NHS Sheffield CCG,9/30/2020,C&M-PMS Contract Value,PRC DELEGATED CO-COMMISSIONING,NETHERGREEN SURGERY,33825261,"65,626.69",BABALP,S11 7EJ
Department of Health,NHS Sheffield CCG,9/30/2020,C&M-PMS Funding Differential Review,PRC DELEGATED CO-COMMISSIONING,NETHERGREEN SURGERY,33825261,"1,369.87",ZFUNFP,S11 7EJ
Department of Health,NHS Sheffield CCG,9/30/2020,C&M-PMS Out of Hours Opt Outs,PRC DELEGATED CO-COMMISSIONING,NETHERGREEN SURGERY,33825261,2.61,APMOOH,S11 7EJ
Department of Health,NHS Sheffield CCG,9/30/2020,C&M-PMS PCN DES Participation,PRC DELEGATED CO-COMMISSIONING,NETHERGREEN SURGERY,33825261,"1,201.24",PARTIP,S11 7EJ
Department of Health,NHS Sheffield CCG,9/30/2020,C&M-PMS PCO Locum Adop/Pat/Mat,PRC DELEGATED CO-COMMISSIONING,NETHERGREEN SURGERY,33825261,"6,056.58",SICKC,S11 7EJ
Department of Health,NHS Sheffield CCG,9/30/2020,C&M-PMS Prem Cost Rent,PRC DELEGATED CO-COMMISSIONING,NETHERGREEN SURGERY,33825261,"5,057.33",COST,S11 7EJ
Department of Health,NHS Sheffield CCG,9/30/2020,C&M-PMS Prem Rates,PRC DELEGATED CO-COMMISSIONING,NETHERGREEN SURGERY,33825261,"1,285.00",RANDRP,S11 7EJ
Department of Health,NHS Sheffield CCG,9/30/2020,C&M-PMS QOF Aspiration,PRC DELEGATED CO-COMMISSIONING,NETHERGREEN SURGERY,33825261,"5,887.42",QUASPP,S11 7EJ
Department of Health,NHS Sheffield CCG,9/30/2020,External Consultancy Fees,BEREAVEMENT SERVICE,NHS DONCASTER CCG,33988797,"65,000.00",RECHARGE PROVIDED,WF3 1WE
Department of Health,NHS Sheffield CCG,9/30/2020,Charges from CSU,BUSINESS INFORMATICS,NHS NORTH OF ENGLAND CSU,34066459,"27,375.92",DSCRO and Data Mgt Services - SEPT 20 Queries to jordan.ho@nhs.net,WF3 1WE
Department of Health,NHS Sheffield CCG,9/30/2020,C&M-GMS Cost of Drugs -Prescribing,LOCAL ENHANCED SERVICES,NORFOLK PARK HEALTH CENTRE,34000917,465.83,DRGP,S2 3TA
Department of Health,NHS Sheffield CCG,9/30/2020,C&M-GMS Global Sum,PRC DELEGATED CO-COMMISSIONING,NORFOLK PARK HEALTH CENTRE,34000917,"42,081.08",GSUMG,S2 3TA
Department of Health,NHS Sheffield CCG,9/30/2020,C&M-GMS PCN DES Participation,PRC DELEGATED CO-COMMISSIONING,NORFOLK PARK HEALTH CENTRE,34000917,800.91,PARTIG,S2 3TA
Department of Health,NHS Sheffield CCG,9/30/2020,C&M-GMS Prem Healthcentre Rent,PRC DELEGATED CO-COMMISSIONING,NORFOLK PARK HEALTH CENTRE,34000917,"25,249.98",HEALTH,S2 3TA
Department of Health,NHS Sheffield CCG,9/30/2020,C&M-GMS Prof Fees Prescribing,PRC DELEGATED CO-COMMISSIONING,NORFOLK PARK HEALTH CENTRE,34000917,103.63,DRGPPF,S2 3TA
Department of Health,NHS Sheffield CCG,9/30/2020,C&M-GMS QOF Aspiration,PRC DELEGATED CO-COMMISSIONING,NORFOLK PARK HEALTH CENTRE,34000917,"3,959.66",QUASPG,S2 3TA
Department of Health,NHS Sheffield CCG,9/30/2020,C&M-GMS Cost of Drugs -Prescribing,LOCAL ENHANCED SERVICES,NORWOOD MEDICAL CENTRE SHEFFIELD,34000920,505.64,DRGP,S5 7HD
Department of Health,NHS Sheffield CCG,9/30/2020,C&M-GMS Global Sum,PRC DELEGATED CO-COMMISSIONING,NORWOOD MEDICAL CENTRE SHEFFIELD,34000920,"68,098.13",GSUMG,S5 7HD
Department of Health,NHS Sheffield CCG,9/30/2020,C&M-GMS PCN DES Participation,PRC DELEGATED CO-COMMISSIONING,NORWOOD MEDICAL CENTRE SHEFFIELD,34000920,"1,343.92",PARTIG,S5 7HD
Department of Health,NHS Sheffield CCG,9/30/2020,C&M-GMS PCO Other,PRC DELEGATED CO-COMMISSIONING,NORWOOD MEDICAL CENTRE SHEFFIELD,34000920,513.80,CQCRG,S5 7HD
Department of Health,NHS Sheffield CCG,9/30/2020,C&M-GMS Prem Notional Rent,PRC DELEGATED CO-COMMISSIONING,NORWOOD MEDICAL CENTRE SHEFFIELD,34000920,"5,187.50",NRENT,S5 7HD
Department of Health,NHS Sheffield CCG,9/30/2020,C&M-GMS Prof Fees Prescribing,PRC DELEGATED CO-COMMISSIONING,NORWOOD MEDICAL CENTRE SHEFFIELD,34000920,133.58,DRGPPF,S5 7HD
Department of Health,NHS Sheffield CCG,9/30/2020,C&M-GMS QOF Aspiration,PRC DELEGATED CO-COMMISSIONING,NORWOOD MEDICAL CENTRE SHEFFIELD,34000920,"8,207.51",QUASPG,S5 7HD
Department of Health,NHS Sheffield CCG,9/30/2020,Clinical&Medical-Independent Sector,ACUTE COMMISSIONING,ONEHEALTH GROUP,33989041,"-54,068.54",https://nww.einvoice-prod.sbs.nhs.uk:8179/invoicepdf/c47656f0-c062-55fe-aa63-16d30a59a538,S11 8UX
Department of Health,NHS Sheffield CCG,9/30/2020,Clinical&Medical-Independent Sector,ACUTE COMMISSIONING,ONEHEALTH GROUP,34044980,"74,519.00",https://nww.einvoice-prod.sbs.nhs.uk:8179/invoicepdf/e11b0c6c-afce-53fa-874d-c4f1fa5916aa,S11 8UX
Department of Health,NHS Sheffield CCG,9/30/2020,C&M-GMS Cost of Drugs -Dispensing,LOCAL ENHANCED SERVICES,OUGHTIBRIDGE SURGERY,34000924,"28,639.01","DRGD,DRGADV",S35 0FW
Department of Health,NHS Sheffield CCG,9/30/2020,C&M-GMS Global Sum,PRC DELEGATED CO-COMMISSIONING,OUGHTIBRIDGE SURGERY,34000924,"44,937.34",GSUMG,S35 0FW
Department of Health,NHS Sheffield CCG,9/30/2020,C&M-GMS PCN DES Participation,PRC DELEGATED CO-COMMISSIONING,OUGHTIBRIDGE SURGERY,34000924,892.20,PARTIG,S35 0FW
Department of Health,NHS Sheffield CCG,9/30/2020,C&M-GMS Prem Notional Rent,PRC DELEGATED CO-COMMISSIONING,OUGHTIBRIDGE SURGERY,34000924,"3,957.33",NRENT,S35 0FW
Department of Health,NHS Sheffield CCG,9/30/2020,C&M-GMS Prem Rates,PRC DELEGATED CO-COMMISSIONING,OUGHTIBRIDGE SURGERY,34000924,"1,073.00",RANDR,S35 0FW
Department of Health,NHS Sheffield CCG,9/30/2020,C&M-GMS Prof Fees Dispensing,PRC DELEGATED CO-COMMISSIONING,OUGHTIBRIDGE SURGERY,34000924,"4,648.25",DRGDPF,S35 0FW
Department of Health,NHS Sheffield CCG,9/30/2020,C&M-GMS PrscrptnChrgsColl&RmttdbyGP,LOCAL ENHANCED SERVICES,OUGHTIBRIDGE SURGERY,34000924,796.05,DRGPR,S35 0FW
Department of Health,NHS Sheffield CCG,9/30/2020,C&M-GMS QOF Aspiration,PRC DELEGATED CO-COMMISSIONING,OUGHTIBRIDGE SURGERY,34000924,"4,282.40",QUASPG,S35 0FW
Department of Health,NHS Sheffield CCG,9/30/2020,C&M-PMS Contract Value,PRC DELEGATED CO-COMMISSIONING,OWLTHORPE MEDICAL CENTRE,33825263,"34,548.57",BABALP,S20 6PD
Department of Health,NHS Sheffield CCG,9/30/2020,C&M-PMS Funding Differential Review,PRC DELEGATED CO-COMMISSIONING,OWLTHORPE MEDICAL CENTRE,33825263,280.01,ZFUNFP,S20 6PD
Department of Health,NHS Sheffield CCG,9/30/2020,C&M-PMS Out of Hours Opt Outs,PRC DELEGATED CO-COMMISSIONING,OWLTHORPE MEDICAL CENTRE,33825263,2.82,APMOOH,S20 6PD
Department of Health,NHS Sheffield CCG,9/30/2020,C&M-PMS PCN DES Participation,PRC DELEGATED CO-COMMISSIONING,OWLTHORPE MEDICAL CENTRE,33825263,633.33,PARTIP,S20 6PD
Department of Health,NHS Sheffield CCG,9/30/2020,C&M-PMS PCO Other,PRC DELEGATED CO-COMMISSIONING,OWLTHORPE MEDICAL CENTRE,33825263,305.40,CQCRP,S20 6PD
Department of Health,NHS Sheffield CCG,9/30/2020,C&M-PMS Prem Actual Rent,PRC DELEGATED CO-COMMISSIONING,OWLTHORPE MEDICAL CENTRE,33825263,"7,539.58",RENT,S20 6PD
Department of Health,NHS Sheffield CCG,9/30/2020,C&M-PMS Prem Water Rates,PRC DELEGATED CO-COMMISSIONING,OWLTHORPE MEDICAL CENTRE,33825263,182.38,RAMWP,S20 6PD
Department of Health,NHS Sheffield CCG,9/30/2020,C&M-PMS QOF Aspiration,PRC DELEGATED CO-COMMISSIONING,OWLTHORPE MEDICAL CENTRE,33825263,"3,728.91",QUASPP,S20 6PD
Department of Health,NHS Sheffield CCG,9/30/2020,C&M-PMS Contract Value,PRC DELEGATED CO-COMMISSIONING,PAGE HALL MEDICAL CENTRE,33825265,"58,569.29",BABALP,S4 8GB
Department of Health,NHS Sheffield CCG,9/30/2020,C&M-PMS Funding Differential Review,PRC DELEGATED CO-COMMISSIONING,PAGE HALL MEDICAL CENTRE,33825265,"1,161.37",ZFUNFP,S4 8GB
Department of Health,NHS Sheffield CCG,9/30/2020,C&M-PMS Out of Hours Opt Outs,PRC DELEGATED CO-COMMISSIONING,PAGE HALL MEDICAL CENTRE,33825265,90.05,APMOOH,S4 8GB
Department of Health,NHS Sheffield CCG,9/30/2020,C&M-PMS PCN DES Participation,PRC DELEGATED CO-COMMISSIONING,PAGE HALL MEDICAL CENTRE,33825265,"1,096.18",PARTIP,S4 8GB
Department of Health,NHS Sheffield CCG,9/30/2020,C&M-PMS PCO Other,PRC DELEGATED CO-COMMISSIONING,PAGE HALL MEDICAL CENTRE,33825265,502.90,CQCRP,S4 8GB
Department of Health,NHS Sheffield CCG,9/30/2020,C&M-PMS Prem Notional Rent,PRC DELEGATED CO-COMMISSIONING,PAGE HALL MEDICAL CENTRE,33825265,"4,833.33",NRENT,S4 8GB
Department of Health,NHS Sheffield CCG,9/30/2020,C&M-PMS Prem Rates,PRC DELEGATED CO-COMMISSIONING,PAGE HALL MEDICAL CENTRE,33825265,"1,285.00",RANDRP,S4 8GB
Department of Health,NHS Sheffield CCG,9/30/2020,C&M-PMS Prem Water Rates,PRC DELEGATED CO-COMMISSIONING,PAGE HALL MEDICAL CENTRE,33825265,206.27,RAMWP,S4 8GB
Department of Health,NHS Sheffield CCG,9/30/2020,C&M-PMS QOF Aspiration,PRC DELEGATED CO-COMMISSIONING,PAGE HALL MEDICAL CENTRE,33825265,"3,909.14",QUASPP,S4 8GB
Department of Health,NHS Sheffield CCG,9/30/2020,C&M-PMS Contract Value,PRC DELEGATED CO-COMMISSIONING,PORTER BROOK MEDICAL CENTRE,33825266,"-14,682.07",BABALP,S11 8HN
Department of Health,NHS Sheffield CCG,9/30/2020,C&M-PMS GP Statutory Levy,PRC DELEGATED CO-COMMISSIONING,PORTER BROOK MEDICAL CENTRE,33825266,"-1,005.66",STATL,S11 8HN
Department of Health,NHS Sheffield CCG,9/30/2020,C&M-PMS Out of Hours Opt Outs,PRC DELEGATED CO-COMMISSIONING,PORTER BROOK MEDICAL CENTRE,33825266,"-8,057.86",APMOOH,S11 8HN
Department of Health,NHS Sheffield CCG,9/30/2020,C&M-PMS PCN DES Participation,PRC DELEGATED CO-COMMISSIONING,PORTER BROOK MEDICAL CENTRE,33825266,"-3,182.41",PARTIP,S11 8HN
Department of Health,NHS Sheffield CCG,9/30/2020,C&M-PMS Contract Value,PRC DELEGATED CO-COMMISSIONING,PORTER BROOK MEDICAL CENTRE,33825267,"169,776.61",BABALP,S11 8HN
Department of Health,NHS Sheffield CCG,9/30/2020,C&M-PMS Funding Differential Review,PRC DELEGATED CO-COMMISSIONING,PORTER BROOK MEDICAL CENTRE,33825267,"3,636.27",ZFUNFP,S11 8HN
Department of Health,NHS Sheffield CCG,9/30/2020,C&M-PMS Out of Hours Opt Outs,PRC DELEGATED CO-COMMISSIONING,PORTER BROOK MEDICAL CENTRE,33825267,699.41,APMOOH,S11 8HN
Department of Health,NHS Sheffield CCG,9/30/2020,C&M-PMS PCN DES Participation,PRC DELEGATED CO-COMMISSIONING,PORTER BROOK MEDICAL CENTRE,33825267,"3,182.41",PARTIP,S11 8HN
Department of Health,NHS Sheffield CCG,9/30/2020,C&M-PMS PCO Locum Adop/Pat/Mat,PRC DELEGATED CO-COMMISSIONING,PORTER BROOK MEDICAL CENTRE,33825267,"3,377.88",SICKC,S11 8HN
Department of Health,NHS Sheffield CCG,9/30/2020,C&M-PMS Prem Actual Rent,PRC DELEGATED CO-COMMISSIONING,PORTER BROOK MEDICAL CENTRE,33825267,"1,666.67",RENT,S11 8HN
Department of Health,NHS Sheffield CCG,9/30/2020,C&M-PMS Prem Notional Rent,PRC DELEGATED CO-COMMISSIONING,PORTER BROOK MEDICAL CENTRE,33825267,"9,666.67",NRENT,S11 8HN
Department of Health,NHS Sheffield CCG,9/30/2020,C&M-PMS Prem Rates,PRC DELEGATED CO-COMMISSIONING,PORTER BROOK MEDICAL CENTRE,33825267,"2,658.00",RANDRP,S11 8HN
Department of Health,NHS Sheffield CCG,9/30/2020,C&M-PMS QOF Aspiration,PRC DELEGATED CO-COMMISSIONING,PORTER BROOK MEDICAL CENTRE,33825267,"10,115.59",QUASPP,S11 8HN
Department of Health,NHS Sheffield CCG,9/30/2020,Clinical&Medical-Commercial Sector,PATIENT TRANSPORT,PREMIER CARE DIRECT LTD,33880686,"112,480.55",https://nww.einvoice-prod.sbs.nhs.uk:8179/invoicepdf/8fa89417-eaa9-577a-a53b-0ab7b0b6716a,DN4 5NU
Department of Health,NHS Sheffield CCG,9/30/2020,C&M-GMS LES Basket of Procedures,LOCAL ENHANCED SERVICES,PRIMARY CARE SHEFFIELD LTD,33880882,"53,558.33",,S9 4EU
Department of Health,NHS Sheffield CCG,9/30/2020,Clinical&Medical-Independent Sector,MENTAL HEALTH SERVICES - OTHER,PRIMARY CARE SHEFFIELD LTD,33931545,"30,583.50",,S9 4EU
Department of Health,NHS Sheffield CCG,9/30/2020,C&M-PMS LES Presc Incentive Sch,LOCAL ENHANCED SERVICES,PRIMARY CARE SHEFFIELD LTD,34045096,"40,750.00",,S9 4EU
Department of Health,NHS Sheffield CCG,9/30/2020,C&M-OES Childrens Schemes,LOCAL ENHANCED SERVICES,PRIMARY EYECARE SERVICES LTD,33730481,425.00,,EC1R 0DG
Department of Health,NHS Sheffield CCG,9/30/2020,C&M-OES Glaucoma,LOCAL ENHANCED SERVICES,PRIMARY EYECARE SERVICES LTD,33730481,655.00,,EC1R 0DG
Department of Health,NHS Sheffield CCG,9/30/2020,C&M-OES Intra-ocular Ocular Hypertn,LOCAL ENHANCED SERVICES,PRIMARY EYECARE SERVICES LTD,33730481,100.00,,EC1R 0DG
Department of Health,NHS Sheffield CCG,9/30/2020,C&M-OES PEARS,LOCAL ENHANCED SERVICES,PRIMARY EYECARE SERVICES LTD,33730481,"25,866.50",,EC1R 0DG
Department of Health,NHS Sheffield CCG,9/30/2020,Cont Care-Physical Disab (<65),CHC ADULT FULLY FUNDED,PRIORY GROUP LTD,33793559,"29,813.90",CHC SCHEDULE SEPTEMBER 2020 - Richmond Heights Care Home (The Priory Group),DL2 1TS
Department of Health,NHS Sheffield CCG,9/30/2020,C&M-PMS Contract Value,PRC DELEGATED CO-COMMISSIONING,RICHMOND MEDICAL CENTRE,33825269,"70,349.80",BABALP,S13 8NA
Department of Health,NHS Sheffield CCG,9/30/2020,C&M-PMS Funding Differential Review,PRC DELEGATED CO-COMMISSIONING,RICHMOND MEDICAL CENTRE,33825269,"1,009.63",ZFUNFP,S13 8NA
Department of Health,NHS Sheffield CCG,9/30/2020,C&M-PMS PCN DES Participation,PRC DELEGATED CO-COMMISSIONING,RICHMOND MEDICAL CENTRE,33825269,"1,278.48",PARTIP,S13 8NA
Department of Health,NHS Sheffield CCG,9/30/2020,C&M-PMS PCO Other,PRC DELEGATED CO-COMMISSIONING,RICHMOND MEDICAL CENTRE,33825269,566.10,CQCRP,S13 8NA
Department of Health,NHS Sheffield CCG,9/30/2020,C&M-PMS Prem Notional Rent,PRC DELEGATED CO-COMMISSIONING,RICHMOND MEDICAL CENTRE,33825269,"4,731.00",NRENT,S13 8NA
Department of Health,NHS Sheffield CCG,9/30/2020,C&M-PMS Prem Rates,PRC DELEGATED CO-COMMISSIONING,RICHMOND MEDICAL CENTRE,33825269,"1,509.00",RANDRP,S13 8NA
Department of Health,NHS Sheffield CCG,9/30/2020,C&M-PMS QOF Aspiration,PRC DELEGATED CO-COMMISSIONING,RICHMOND MEDICAL CENTRE,33825269,"7,878.95",QUASPP,S13 8NA
Department of Health,NHS Sheffield CCG,9/30/2020,Cont Care-Funded Nursing Care Allow,FUNDED NURSING CARE,ROSEBERRY CARE CENTRES,33793528,"25,027.41",FNC SCHEDULE SEPTEMBER 2020 - Haythorne Place Nursing Home (Roseberry),S5 6AB
Department of Health,NHS Sheffield CCG,9/30/2020,Cont Care-Physical Disab (<65),CHC ADULT FULLY FUNDED,ROSEBERRY CARE CENTRES,33793570,"32,729.28",CHC SCHEDULE SEPTEMBER 2020 - Chapel Lodge Nursing Home (Roseberry),S35 2XF
Department of Health,NHS Sheffield CCG,9/30/2020,Cont Care-Physical Disab (<65),CHC ADULT FULLY FUNDED,ROSEBERRY CARE CENTRES,33793571,"58,145.28",CHC SCHEDULE SEPTEMBER 2020 - Haythorne Place Nursing Home (Roseberry),S5 6AB
Department of Health,NHS Sheffield CCG,9/30/2020,Cont Care-Physical Disab (<65),CHC ADULT FULLY FUNDED,ROSEBERRY CARE CENTRES,33793580,"48,001.81",CHC SCHEDULE SEPTEMBER 2020 - Norbury Court Care Centre (Roseberry),S4 7AJ
Department of Health,NHS Sheffield CCG,9/30/2020,Hcare Srv Rec Fdtn Trust-Contract Baseline,ACUTE COMMISSIONING,ROTHERHAM NHS FOUNDATION TRUST,33863840,"618,988.29",,S60 2UD
Department of Health,NHS Sheffield CCG,9/30/2020,C&M-APMS OOH Opt Outs,PRC DELEGATED CO-COMMISSIONING,RUSTLINGS ROAD MEDICAL CENTRE,33842265,12.86,APMOOA,S11 7AB
Department of Health,NHS Sheffield CCG,9/30/2020,C&M-PMS Contract Value,PRC DELEGATED CO-COMMISSIONING,RUSTLINGS ROAD MEDICAL CENTRE,33842265,"28,963.43",BABALP,S11 7AB
Department of Health,NHS Sheffield CCG,9/30/2020,C&M-PMS Funding Differential Review,PRC DELEGATED CO-COMMISSIONING,RUSTLINGS ROAD MEDICAL CENTRE,33842265,565.04,ZFUNFP,S11 7AB
Department of Health,NHS Sheffield CCG,9/30/2020,C&M-PMS PCN DES Participation,PRC DELEGATED CO-COMMISSIONING,RUSTLINGS ROAD MEDICAL CENTRE,33842265,536.04,PARTIP,S11 7AB
Department of Health,NHS Sheffield CCG,9/30/2020,C&M-PMS PCO Other,PRC DELEGATED CO-COMMISSIONING,RUSTLINGS ROAD MEDICAL CENTRE,33842265,316.40,CQCRP,S11 7AB
Department of Health,NHS Sheffield CCG,9/30/2020,C&M-PMS Prem Notional Rent,PRC DELEGATED CO-COMMISSIONING,RUSTLINGS ROAD MEDICAL CENTRE,33842265,"1,312.50",NRENT,S11 7AB
Department of Health,NHS Sheffield CCG,9/30/2020,C&M-PMS QOF Aspiration,PRC DELEGATED CO-COMMISSIONING,RUSTLINGS ROAD MEDICAL CENTRE,33842265,"2,857.73",QUASPP,S11 7AB
Department of Health,NHS Sheffield CCG,9/30/2020,Cont Care-Physical Disab (<65),CHC ADULT FULLY FUNDED,SCARSDALE GRANGE NURSING HOME,33793561,"27,425.49",CHC SCHEDULE SEPTEMBER 2020 - Scarsdale Grange Nursing Home,S8 9EQ
Department of Health,NHS Sheffield CCG,9/30/2020,C&M-PMS Contract Value,PRC DELEGATED CO-COMMISSIONING,SELBORNE ROAD MEDICAL CENTRE,33825271,"19,757.39",BABALP,S10 5ND
Department of Health,NHS Sheffield CCG,9/30/2020,C&M-PMS Funding Differential Review,PRC DELEGATED CO-COMMISSIONING,SELBORNE ROAD MEDICAL CENTRE,33825271,478.42,ZFUNFP,S10 5ND
Department of Health,NHS Sheffield CCG,9/30/2020,C&M-PMS PCN DES Participation,PRC DELEGATED CO-COMMISSIONING,SELBORNE ROAD MEDICAL CENTRE,33825271,365.84,PARTIP,S10 5ND
Department of Health,NHS Sheffield CCG,9/30/2020,C&M-PMS PCO Other,PRC DELEGATED CO-COMMISSIONING,SELBORNE ROAD MEDICAL CENTRE,33825271,407.60,CQCRP,S10 5ND
Department of Health,NHS Sheffield CCG,9/30/2020,C&M-PMS Prem Notional Rent,PRC DELEGATED CO-COMMISSIONING,SELBORNE ROAD MEDICAL CENTRE,33825271,"1,735.42",NRENT,S10 5ND
Department of Health,NHS Sheffield CCG,9/30/2020,C&M-PMS Prem Rates,PRC DELEGATED CO-COMMISSIONING,SELBORNE ROAD MEDICAL CENTRE,33825271,611.00,RANDRP,S10 5ND
Department of Health,NHS Sheffield CCG,9/30/2020,C&M-PMS QOF Aspiration,PRC DELEGATED CO-COMMISSIONING,SELBORNE ROAD MEDICAL CENTRE,33825271,"1,877.44",QUASPP,S10 5ND
Department of Health,NHS Sheffield CCG,9/30/2020,Cont Care-Physical Disab (<65),CHC ADULT FULLY FUNDED,SEVEN HILLS NURSING HOME,33793562,"58,015.52",CHC SCHEDULE SEPTEMBER 2020 - Seven Hills Nursing Home,S11 9AA
Department of Health,NHS Sheffield CCG,9/30/2020,C&M-GMS Cost of Drugs -Prescribing,LOCAL ENHANCED SERVICES,SHARROW LANE MEDICAL CENTRE,34000928,305.99,DRGP,S11 8AN
Department of Health,NHS Sheffield CCG,9/30/2020,C&M-GMS Global Sum,PRC DELEGATED CO-COMMISSIONING,SHARROW LANE MEDICAL CENTRE,34000928,"24,642.00",GSUMG,S11 8AN
Department of Health,NHS Sheffield CCG,9/30/2020,C&M-GMS PCN DES Participation,PRC DELEGATED CO-COMMISSIONING,SHARROW LANE MEDICAL CENTRE,34000928,487.93,PARTIG,S11 8AN
Department of Health,NHS Sheffield CCG,9/30/2020,C&M-GMS PCO Other,PRC DELEGATED CO-COMMISSIONING,SHARROW LANE MEDICAL CENTRE,34000928,274.00,CQCRG,S11 8AN
Department of Health,NHS Sheffield CCG,9/30/2020,C&M-GMS Prem Notional Rent,PRC DELEGATED CO-COMMISSIONING,SHARROW LANE MEDICAL CENTRE,34000928,"2,741.67",NRENT,S11 8AN
Department of Health,NHS Sheffield CCG,9/30/2020,C&M-GMS Prof Fees Prescribing,PRC DELEGATED CO-COMMISSIONING,SHARROW LANE MEDICAL CENTRE,34000928,46.06,DRGPPF,S11 8AN
Department of Health,NHS Sheffield CCG,9/30/2020,C&M-GMS QOF Aspiration,PRC DELEGATED CO-COMMISSIONING,SHARROW LANE MEDICAL CENTRE,34000928,"2,676.86",QUASPG,S11 8AN
Department of Health,NHS Sheffield CCG,9/30/2020,Hcare Srv Rec Fdtn Trust-Contract Baseline,ACUTE CHILDRENS SERVICES,SHEFFIELD CHILDRENS NHS FOUNDATION TRUST,33863837,"3,460,348.98",,S10 2TH
Department of Health,NHS Sheffield CCG,9/30/2020,Cont Care- Prior Year Payments,ADULT JOINT FUNDED CONTINUING CARE,SHEFFIELD CITY COUNCIL,33744836,"29,431.83",,S1 4PL
Department of Health,NHS Sheffield CCG,9/30/2020,Cont Care-Physical Disab (65+),CHC ADULT FULLY FUNDED,SHEFFIELD CITY COUNCIL,33793592,"988,995.80",RMT SCHEDULE SEPTEMBER 2020,S1 1UJ
Department of Health,NHS Sheffield CCG,9/30/2020,Cont Care- Prior Year Payments,CHC ADULT FULLY FUNDED,SHEFFIELD CITY COUNCIL,33793593,"33,929.71",RMT SCHEDULE SEPTEMBER 2020PY,S1 1UJ
Department of Health,NHS Sheffield CCG,9/30/2020,Cont Care- Children,CHC CHILDREN,SHEFFIELD CITY COUNCIL,33793594,"91,228.00",CHILDRENS SCHEDULE SEPTEMBER 2020,S1 1UJ
Department of Health,NHS Sheffield CCG,9/30/2020,Soc Care-Support Prim Care,COMMUNITY SERVICES,SHEFFIELD CITY COUNCIL,33946165,"-180,000.00",,S1 2HH
Department of Health,NHS Sheffield CCG,9/30/2020,Soc Care-Support Prim Care,COMMUNITY SERVICES,SHEFFIELD CITY COUNCIL,33962842,"180,000.00",,S1 2HH
Department of Health,NHS Sheffield CCG,9/30/2020,Clinical&Medical-Othe Public Sector,COMMUNITY SERVICES,SHEFFIELD CITY COUNCIL,33963009,"1,785,666.67",,S1 1UJ
Department of Health,NHS Sheffield CCG,9/30/2020,Clinical&Medical-Othe Public Sector,MENTAL HEALTH SERVICES - COLLABORATIVE COMMISSIONING,SHEFFIELD CITY COUNCIL,33963009,"59,435.47",,S1 1UJ
Department of Health,NHS Sheffield CCG,9/30/2020,Clinical&Medical-Othe Public Sector,REABLEMENT,SHEFFIELD CITY COUNCIL,33963009,"21,808.67",,S1 1UJ
Department of Health,NHS Sheffield CCG,9/30/2020,Clinical&Medical-Othe Public Sector,SAFEGUARDING,SHEFFIELD CITY COUNCIL,33963009,"16,596.34",,S1 1UJ
Department of Health,NHS Sheffield CCG,9/30/2020,Soc Care-Joint H&C Teams/Working,INTERMEDIATE CARE,SHEFFIELD CITY COUNCIL,33963009,"151,447.58",,S1 1UJ
Department of Health,NHS Sheffield CCG,9/30/2020,Soc Care-Other Soc Care,COMMISSIONING - NON ACUTE,SHEFFIELD CITY COUNCIL,33963009,"83,669.08",,S1 1UJ
Department of Health,NHS Sheffield CCG,9/30/2020,Soc Care-Support Prim Care,COMMUNITY SERVICES,SHEFFIELD CITY COUNCIL,33963009,"58,000.00",,S1 1UJ
Department of Health,NHS Sheffield CCG,9/30/2020,Soc Care-Support Prim Care,COMMUNITY SERVICES,SHEFFIELD CITY COUNCIL,33989054,"1,867,000.00",,S1 2HH
Department of Health,NHS Sheffield CCG,9/30/2020,Clinical&Medical-Voluntary Sector,CHILD AND ADOLESCENT MENTAL HEALTH,SHEFFIELD FUTURES,33946169,"25,600.00",,S1 4GE
Department of Health,NHS Sheffield CCG,9/30/2020,Hcare Srv Rec Fdtn Trust-Contract Baseline,MENTAL HEALTH CONTRACTS,SHEFFIELD HEALTH & SOCIAL CARE NHS FOUNDATION TRUST,33863838,"7,311,989.53",,S10 3TH
Department of Health,NHS Sheffield CCG,9/30/2020,PREPYMT OVERSEAS EEA PATIENTS,CHC ADULT FULLY FUNDED,SHEFFIELD TEACHING HOSPITALS NHS FOUNDATION TRUST,33827259,"39,813.10",,S5 7AU
Department of Health,NHS Sheffield CCG,9/30/2020,Clinical&Medical-Independent Sector,COMMUNITY SERVICES,SHEFFIELD TEACHING HOSPITALS NHS FOUNDATION TRUST,33861946,"1,341,982.00",,S5 7AU
Department of Health,NHS Sheffield CCG,9/30/2020,Hcare Srv Rec Fdtn Trust-Contract Baseline,ACUTE COMMISSIONING,SHEFFIELD TEACHING HOSPITALS NHS FOUNDATION TRUST,33863839,"37,588,203.57",,S5 7AU
Department of Health,NHS Sheffield CCG,9/30/2020,C&M-GMS Cost of Drugs -Prescribing,LOCAL ENHANCED SERVICES,SHIREGREEN MEDICAL CENTRE,34000936,263.60,DRGP,S5 0RG
Department of Health,NHS Sheffield CCG,9/30/2020,C&M-GMS Global Sum,PRC DELEGATED CO-COMMISSIONING,SHIREGREEN MEDICAL CENTRE,34000936,"59,351.78",GSUMG,S5 0RG
Department of Health,NHS Sheffield CCG,9/30/2020,C&M-GMS PCN DES Participation,PRC DELEGATED CO-COMMISSIONING,SHIREGREEN MEDICAL CENTRE,34000936,"1,193.58",PARTIG,S5 0RG
Department of Health,NHS Sheffield CCG,9/30/2020,C&M-GMS PCO Other,PRC DELEGATED CO-COMMISSIONING,SHIREGREEN MEDICAL CENTRE,34000936,496.00,CQCRG,S5 0RG
Department of Health,NHS Sheffield CCG,9/30/2020,C&M-GMS Prem Cost Rent,PRC DELEGATED CO-COMMISSIONING,SHIREGREEN MEDICAL CENTRE,34000936,"1,792.33",COST,S5 0RG
Department of Health,NHS Sheffield CCG,9/30/2020,C&M-GMS Prem Notional Rent,PRC DELEGATED CO-COMMISSIONING,SHIREGREEN MEDICAL CENTRE,34000936,"5,375.00",NRENT,S5 0RG
Department of Health,NHS Sheffield CCG,9/30/2020,C&M-GMS Prof Fees Prescribing,PRC DELEGATED CO-COMMISSIONING,SHIREGREEN MEDICAL CENTRE,34000936,92.12,DRGPPF,S5 0RG
Department of Health,NHS Sheffield CCG,9/30/2020,C&M-GMS QOF Aspiration,PRC DELEGATED CO-COMMISSIONING,SHIREGREEN MEDICAL CENTRE,34000936,"6,876.28",QUASPG,S5 0RG
Department of Health,NHS Sheffield CCG,9/30/2020,C&M-PMS Contract Value,PRC DELEGATED CO-COMMISSIONING,SLOAN MEDICAL CENTRE,33825274,"97,831.71",BABALP,S8 0YH
Department of Health,NHS Sheffield CCG,9/30/2020,C&M-PMS Funding Differential Review,PRC DELEGATED CO-COMMISSIONING,SLOAN MEDICAL CENTRE,33825274,"1,677.40",ZFUNFP,S8 0YH
Department of Health,NHS Sheffield CCG,9/30/2020,C&M-PMS PCN DES Participation,PRC DELEGATED CO-COMMISSIONING,SLOAN MEDICAL CENTRE,33825274,"1,829.77",PARTIP,S8 0YH
Department of Health,NHS Sheffield CCG,9/30/2020,C&M-PMS Prem Actual Rent,PRC DELEGATED CO-COMMISSIONING,SLOAN MEDICAL CENTRE,33825274,"15,970.83",RENT,S8 0YH
Department of Health,NHS Sheffield CCG,9/30/2020,C&M-PMS Prem Notional Rent,PRC DELEGATED CO-COMMISSIONING,SLOAN MEDICAL CENTRE,33825274,747.50,NRENT,S8 0YH
Department of Health,NHS Sheffield CCG,9/30/2020,C&M-PMS Prem Rates,PRC DELEGATED CO-COMMISSIONING,SLOAN MEDICAL CENTRE,33825274,"3,478.00",RANDRP,S8 0YH
Department of Health,NHS Sheffield CCG,9/30/2020,C&M-PMS QOF Aspiration,PRC DELEGATED CO-COMMISSIONING,SLOAN MEDICAL CENTRE,33825274,"9,977.55",QUASPP,S8 0YH
Department of Health,NHS Sheffield CCG,9/30/2020,C&M-PMS Contract Value,PRC DELEGATED CO-COMMISSIONING,SOTHALL MEDICAL CENTRE,33825276,"72,650.28",BABALP,S20 1HQ
Department of Health,NHS Sheffield CCG,9/30/2020,C&M-PMS Funding Differential Review,PRC DELEGATED CO-COMMISSIONING,SOTHALL MEDICAL CENTRE,33825276,"1,401.44",ZFUNFP,S20 1HQ
Department of Health,NHS Sheffield CCG,9/30/2020,C&M-PMS PCN DES Participation,PRC DELEGATED CO-COMMISSIONING,SOTHALL MEDICAL CENTRE,33825276,"1,354.16",PARTIP,S20 1HQ
Department of Health,NHS Sheffield CCG,9/30/2020,C&M-PMS Prem Notional Rent,PRC DELEGATED CO-COMMISSIONING,SOTHALL MEDICAL CENTRE,33825276,"5,116.67",NRENT,S20 1HQ
Department of Health,NHS Sheffield CCG,9/30/2020,C&M-PMS Prem Rates,PRC DELEGATED CO-COMMISSIONING,SOTHALL MEDICAL CENTRE,33825276,"1,435.00",RANDRP,S20 1HQ
Department of Health,NHS Sheffield CCG,9/30/2020,C&M-PMS QOF Aspiration,PRC DELEGATED CO-COMMISSIONING,SOTHALL MEDICAL CENTRE,33825276,"8,491.33",QUASPP,S20 1HQ
Department of Health,NHS Sheffield CCG,9/30/2020,Cont Care- Adult 100% Fully Funded,CHC ADULT FULLY FUNDED,SOUTH YORKSHIRE HOUSING ASSOCIATION LTD,33769982,"25,500.00",Birch Avenue - Additional Staff September 20,S1 4HF
Department of Health,NHS Sheffield CCG,9/30/2020,Cont Care- Adult 100% Fully Funded,CHC ADULT FULLY FUNDED,SOUTH YORKSHIRE HOUSING ASSOCIATION LTD,33769983,"46,763.59",Birch Avenue - September 20,S1 4HF
Department of Health,NHS Sheffield CCG,9/30/2020,Clinical&Medical-Independent Sector,MENTAL HEALTH CONTRACTS,SOUTH YORKSHIRE HOUSING ASSOCIATION LTD,33769985,"34,434.83",Lister Avenue - September 20,S1 4HF
Department of Health,NHS Sheffield CCG,9/30/2020,Cont Care-Physical Disab (<65),CHC ADULT FULLY FUNDED,SOUTH YORKSHIRE HOUSING ASSOCIATION LTD,33793547,"88,268.56",CHC SCHEDULE SEPTEMBER 2020 - Birch Avenue Nursing Home (SYHA),S35 1RQ
Department of Health,NHS Sheffield CCG,9/30/2020,C&M-PMS Contract Value,PRC DELEGATED CO-COMMISSIONING,SOUTHEY GREEN MEDICAL CENTRE,33825278,"25,424.03",BABALP,S5 7QB
Department of Health,NHS Sheffield CCG,9/30/2020,C&M-PMS Funding Differential Review,PRC DELEGATED CO-COMMISSIONING,SOUTHEY GREEN MEDICAL CENTRE,33825278,612.28,ZFUNFP,S5 7QB
Department of Health,NHS Sheffield CCG,9/30/2020,C&M-PMS Out of Hours Opt Outs,PRC DELEGATED CO-COMMISSIONING,SOUTHEY GREEN MEDICAL CENTRE,33825278,5.20,APMOOH,S5 7QB
Department of Health,NHS Sheffield CCG,9/30/2020,C&M-PMS PCN DES Participation,PRC DELEGATED CO-COMMISSIONING,SOUTHEY GREEN MEDICAL CENTRE,33825278,475.95,PARTIP,S5 7QB
Department of Health,NHS Sheffield CCG,9/30/2020,C&M-PMS Prem Notional Rent,PRC DELEGATED CO-COMMISSIONING,SOUTHEY GREEN MEDICAL CENTRE,33825278,"3,362.50",NRENT,S5 7QB
Department of Health,NHS Sheffield CCG,9/30/2020,C&M-PMS Prem Rates,PRC DELEGATED CO-COMMISSIONING,SOUTHEY GREEN MEDICAL CENTRE,33825278,"1,198.00",RANDRP,S5 7QB
Department of Health,NHS Sheffield CCG,9/30/2020,C&M-PMS QOF Aspiration,PRC DELEGATED CO-COMMISSIONING,SOUTHEY GREEN MEDICAL CENTRE,33825278,"2,637.54",QUASPP,S5 7QB
Department of Health,NHS Sheffield CCG,9/30/2020,Clinical&Medical-Independent Sector,ACUTE COMMISSIONING,SPAMEDICA LTD,33988944,"107,174.99",https://nww.einvoice-prod.sbs.nhs.uk:8179/invoicepdf/c6d73acc-21bf-5291-bc2c-cc4a643ca658,M15 4SQ
Department of Health,NHS Sheffield CCG,9/30/2020,Clinical&Medical-Voluntary Sector,HOSPICES,ST LUKES HOSPICE,33963052,"135,615.00",,S11 9NE
Department of Health,NHS Sheffield CCG,9/30/2020,C&M-GMS Global Sum,PRC DELEGATED CO-COMMISSIONING,STANNINGTON MEDICAL CENTRE,34000940,"26,928.84",GSUMG,S6 6BX
Department of Health,NHS Sheffield CCG,9/30/2020,C&M-GMS PCO Other,PRC DELEGATED CO-COMMISSIONING,STANNINGTON MEDICAL CENTRE,34000940,243.40,CQCRG,S6 6BX
Department of Health,NHS Sheffield CCG,9/30/2020,C&M-GMS Prem Notional Rent,PRC DELEGATED CO-COMMISSIONING,STANNINGTON MEDICAL CENTRE,34000940,"2,575.00",NRENT,S6 6BX
Department of Health,NHS Sheffield CCG,9/30/2020,C&M-GMS Prem Rates,PRC DELEGATED CO-COMMISSIONING,STANNINGTON MEDICAL CENTRE,34000940,500.00,RANDR,S6 6BX
Department of Health,NHS Sheffield CCG,9/30/2020,C&M-GMS QOF Aspiration,PRC DELEGATED CO-COMMISSIONING,STANNINGTON MEDICAL CENTRE,34000940,"3,017.79",QUASPG,S6 6BX
Department of Health,NHS Sheffield CCG,9/30/2020,C&M-GMS Cost of Drugs -Prescribing,LOCAL ENHANCED SERVICES,STONECROFT MEDICAL CENTRE,34000938,63.49,DRGP,S12 2LJ
Department of Health,NHS Sheffield CCG,9/30/2020,C&M-GMS Global Sum,PRC DELEGATED CO-COMMISSIONING,STONECROFT MEDICAL CENTRE,34000938,"33,911.03",GSUMG,S12 2LJ
Department of Health,NHS Sheffield CCG,9/30/2020,C&M-GMS PCN DES Participation,PRC DELEGATED CO-COMMISSIONING,STONECROFT MEDICAL CENTRE,34000938,668.04,PARTIG,S12 2LJ
Department of Health,NHS Sheffield CCG,9/30/2020,C&M-GMS PCO Other,PRC DELEGATED CO-COMMISSIONING,STONECROFT MEDICAL CENTRE,34000938,286.80,CQCRG,S12 2LJ
Department of Health,NHS Sheffield CCG,9/30/2020,C&M-GMS Prem Notional Rent,PRC DELEGATED CO-COMMISSIONING,STONECROFT MEDICAL CENTRE,34000938,"2,808.33",NRENT,S12 2LJ
Department of Health,NHS Sheffield CCG,9/30/2020,C&M-GMS Prem Rates,PRC DELEGATED CO-COMMISSIONING,STONECROFT MEDICAL CENTRE,34000938,"1,235.00",RANDR,S12 2LJ
Department of Health,NHS Sheffield CCG,9/30/2020,C&M-GMS Prof Fees Prescribing,PRC DELEGATED CO-COMMISSIONING,STONECROFT MEDICAL CENTRE,34000938,50.67,DRGPPF,S12 2LJ
Department of Health,NHS Sheffield CCG,9/30/2020,C&M-GMS QOF Aspiration,PRC DELEGATED CO-COMMISSIONING,STONECROFT MEDICAL CENTRE,34000938,"4,246.35",QUASPG,S12 2LJ
Department of Health,NHS Sheffield CCG,9/30/2020,Clinical&Medical-Independent Sector,MENTAL HEALTH CONTRACTS,SUSASH GB LTD T/A EAGLE HOUSE,33769984,"30,091.75",Eagle House - September 20,S11 8NP
Department of Health,NHS Sheffield CCG,9/30/2020,C&M-GMS Global Sum,PRC DELEGATED CO-COMMISSIONING,TOTLEY RISE MEDICAL CENTRE,34000942,"27,309.63",GSUMG,S17 4DQ
Department of Health,NHS Sheffield CCG,9/30/2020,C&M-GMS PCN DES Participation,PRC DELEGATED CO-COMMISSIONING,TOTLEY RISE MEDICAL CENTRE,34000942,531.20,PARTIG,S17 4DQ
Department of Health,NHS Sheffield CCG,9/30/2020,C&M-GMS Prem Notional Rent,PRC DELEGATED CO-COMMISSIONING,TOTLEY RISE MEDICAL CENTRE,34000942,"1,604.17",NRENT,S17 4DQ
Department of Health,NHS Sheffield CCG,9/30/2020,C&M-GMS Prem Rates,PRC DELEGATED CO-COMMISSIONING,TOTLEY RISE MEDICAL CENTRE,34000942,159.00,RANDR,S17 4DQ
Department of Health,NHS Sheffield CCG,9/30/2020,C&M-GMS QOF Aspiration,PRC DELEGATED CO-COMMISSIONING,TOTLEY RISE MEDICAL CENTRE,34000942,"2,402.35",QUASPG,S17 4DQ
Department of Health,NHS Sheffield CCG,9/30/2020,C&M-GMS Cost of Drugs -Prescribing,LOCAL ENHANCED SERVICES,TRAMWAYS MEDICAL CENTRE,34000944,"1,481.11",DRGP,S6 4JQ
Department of Health,NHS Sheffield CCG,9/30/2020,C&M-GMS Global Sum,PRC DELEGATED CO-COMMISSIONING,TRAMWAYS MEDICAL CENTRE,34000944,"63,415.24",GSUMG,S6 4JQ
Department of Health,NHS Sheffield CCG,9/30/2020,C&M-GMS PCN DES Participation,PRC DELEGATED CO-COMMISSIONING,TRAMWAYS MEDICAL CENTRE,34000944,"1,257.39",PARTIG,S6 4JQ
Department of Health,NHS Sheffield CCG,9/30/2020,C&M-GMS PCO Other,PRC DELEGATED CO-COMMISSIONING,TRAMWAYS MEDICAL CENTRE,34000944,530.40,CQCRG,S6 4JQ
Department of Health,NHS Sheffield CCG,9/30/2020,C&M-GMS Prem Cost Rent,PRC DELEGATED CO-COMMISSIONING,TRAMWAYS MEDICAL CENTRE,34000944,"4,012.75",COST,S6 4JQ
Department of Health,NHS Sheffield CCG,9/30/2020,C&M-GMS Prem Rates,PRC DELEGATED CO-COMMISSIONING,TRAMWAYS MEDICAL CENTRE,34000944,"1,310.00",RANDR,S6 4JQ
Department of Health,NHS Sheffield CCG,9/30/2020,C&M-GMS Prof Fees Prescribing,PRC DELEGATED CO-COMMISSIONING,TRAMWAYS MEDICAL CENTRE,34000944,103.64,DRGPPF,S6 4JQ
Department of Health,NHS Sheffield CCG,9/30/2020,C&M-GMS QOF Aspiration,PRC DELEGATED CO-COMMISSIONING,TRAMWAYS MEDICAL CENTRE,34000944,"5,986.86",QUASPG,S6 4JQ
Department of Health,NHS Sheffield CCG,9/30/2020,C&M-PMS Contract Value,PRC DELEGATED CO-COMMISSIONING,UNIVERSITY HEALTH SERVICE,33825281,"-31,872.48",BABALP,S3 7QP
Department of Health,NHS Sheffield CCG,9/30/2020,C&M-PMS DES Extended Hours Access,PRC DELEGATED CO-COMMISSIONING,UNIVERSITY HEALTH SERVICE,33825281,"-4,929.28",EXTHDP,S3 7QP
Department of Health,NHS Sheffield CCG,9/30/2020,C&M-PMS GP Statutory Levy,PRC DELEGATED CO-COMMISSIONING,UNIVERSITY HEALTH SERVICE,33825281,"-1,327.97",STATL,S3 7QP
Department of Health,NHS Sheffield CCG,9/30/2020,C&M-PMS Out of Hours Opt Outs,PRC DELEGATED CO-COMMISSIONING,UNIVERSITY HEALTH SERVICE,33825281,"-9,794.98",APMOOH,S3 7QP
Department of Health,NHS Sheffield CCG,9/30/2020,C&M-PMS PCN DES Clinical Director,PRC DELEGATED CO-COMMISSIONING,UNIVERSITY HEALTH SERVICE,33825281,"-2,454.44",CLINDP,S3 7QP
Department of Health,NHS Sheffield CCG,9/30/2020,C&M-PMS PCN DES PCN support,LOCAL ENHANCED SERVICES,UNIVERSITY HEALTH SERVICE,33825281,"-5,099.25",PCNSUP,S3 7QP
Department of Health,NHS Sheffield CCG,9/30/2020,C&M-PMS PCN DES Participation,PRC DELEGATED CO-COMMISSIONING,UNIVERSITY HEALTH SERVICE,33825281,"-3,871.12",PARTIP,S3 7QP
Department of Health,NHS Sheffield CCG,9/30/2020,C&M-PCN DES Support Payment,PRC DELEGATED CO-COMMISSIONING,UNIVERSITY HEALTH SERVICE,33825282,"1,187.06",SUPPPP,S3 7QP
Department of Health,NHS Sheffield CCG,9/30/2020,C&M-PMS Contract Value,PRC DELEGATED CO-COMMISSIONING,UNIVERSITY HEALTH SERVICE,33825282,"205,419.18",BABALP,S3 7QP
Department of Health,NHS Sheffield CCG,9/30/2020,C&M-PMS DES Extended Hours Access,PRC DELEGATED CO-COMMISSIONING,UNIVERSITY HEALTH SERVICE,33825282,"4,929.28",EXTHDP,S3 7QP
Department of Health,NHS Sheffield CCG,9/30/2020,C&M-PMS Out of Hours Opt Outs,PRC DELEGATED CO-COMMISSIONING,UNIVERSITY HEALTH SERVICE,33825282,"1,523.89",APMOOH,S3 7QP
Department of Health,NHS Sheffield CCG,9/30/2020,C&M-PMS PCN DES Clinical Director,PRC DELEGATED CO-COMMISSIONING,UNIVERSITY HEALTH SERVICE,33825282,"2,454.44",CLINDP,S3 7QP
Department of Health,NHS Sheffield CCG,9/30/2020,C&M-PMS PCN DES PCN support,LOCAL ENHANCED SERVICES,UNIVERSITY HEALTH SERVICE,33825282,"5,099.25",PCNSUP,S3 7QP
Department of Health,NHS Sheffield CCG,9/30/2020,C&M-PMS PCN DES Participation,PRC DELEGATED CO-COMMISSIONING,UNIVERSITY HEALTH SERVICE,33825282,"3,871.12",PARTIP,S3 7QP
Department of Health,NHS Sheffield CCG,9/30/2020,C&M-PMS Prem Notional Rent,PRC DELEGATED CO-COMMISSIONING,UNIVERSITY HEALTH SERVICE,33825282,"15,833.33",NRENT,S3 7QP
Department of Health,NHS Sheffield CCG,9/30/2020,C&M-PMS QOF Aspiration,PRC DELEGATED CO-COMMISSIONING,UNIVERSITY HEALTH SERVICE,33825282,"7,529.34",QUASPP,S3 7QP
Department of Health,NHS Sheffield CCG,9/30/2020,C&M-GMS Cost of Drugs -Prescribing,LOCAL ENHANCED SERVICES,UPPERTHORPE MEDICAL CENTRE,34000947,"1,154.43",DRGP,S6 3FT
Department of Health,NHS Sheffield CCG,9/30/2020,C&M-GMS Global Sum,PRC DELEGATED CO-COMMISSIONING,UPPERTHORPE MEDICAL CENTRE,34000947,"89,188.96",GSUMG,S6 3FT
Department of Health,NHS Sheffield CCG,9/30/2020,C&M-GMS PCN DES Participation,PRC DELEGATED CO-COMMISSIONING,UPPERTHORPE MEDICAL CENTRE,34000947,"1,742.53",PARTIG,S6 3FT
Department of Health,NHS Sheffield CCG,9/30/2020,C&M-GMS Prem Actual Rent,PRC DELEGATED CO-COMMISSIONING,UPPERTHORPE MEDICAL CENTRE,34000947,"58,950.30",RENT,S6 3FT
Department of Health,NHS Sheffield CCG,9/30/2020,C&M-GMS Prem Notional Rent,PRC DELEGATED CO-COMMISSIONING,UPPERTHORPE MEDICAL CENTRE,34000947,"2,547.83",NRENT,S6 3FT
Department of Health,NHS Sheffield CCG,9/30/2020,C&M-GMS Prem Rates,PRC DELEGATED CO-COMMISSIONING,UPPERTHORPE MEDICAL CENTRE,34000947,"2,620.00",RANDR,S6 3FT
Department of Health,NHS Sheffield CCG,9/30/2020,C&M-GMS Prem Water Rates,PRC DELEGATED CO-COMMISSIONING,UPPERTHORPE MEDICAL CENTRE,34000947,320.44,RAMW,S6 3FT
Department of Health,NHS Sheffield CCG,9/30/2020,C&M-GMS Prof Fees Prescribing,PRC DELEGATED CO-COMMISSIONING,UPPERTHORPE MEDICAL CENTRE,34000947,142.79,DRGPPF,S6 3FT
Department of Health,NHS Sheffield CCG,9/30/2020,C&M-GMS QOF Aspiration,PRC DELEGATED CO-COMMISSIONING,UPPERTHORPE MEDICAL CENTRE,34000947,"9,300.36",QUASPG,S6 3FT
Department of Health,NHS Sheffield CCG,9/30/2020,C&M-PMS Contract Value,PRC DELEGATED CO-COMMISSIONING,UPWELL STREET SURGERY,33825284,"37,024.50",BABALP,S4 8AN
Department of Health,NHS Sheffield CCG,9/30/2020,C&M-PMS Funding Differential Review,PRC DELEGATED CO-COMMISSIONING,UPWELL STREET SURGERY,33825284,911.19,ZFUNFP,S4 8AN
Department of Health,NHS Sheffield CCG,9/30/2020,C&M-PMS Out of Hours Opt Outs,PRC DELEGATED CO-COMMISSIONING,UPWELL STREET SURGERY,33825284,82.62,APMOOH,S4 8AN
Department of Health,NHS Sheffield CCG,9/30/2020,C&M-PMS PCN DES Participation,PRC DELEGATED CO-COMMISSIONING,UPWELL STREET SURGERY,33825284,687.31,PARTIP,S4 8AN
Department of Health,NHS Sheffield CCG,9/30/2020,C&M-PMS Prem Notional Rent,PRC DELEGATED CO-COMMISSIONING,UPWELL STREET SURGERY,33825284,"8,137.50",NRENT,S4 8AN
Department of Health,NHS Sheffield CCG,9/30/2020,C&M-PMS Prem Rates,PRC DELEGATED CO-COMMISSIONING,UPWELL STREET SURGERY,33825284,"1,362.00",RANDRP,S4 8AN
Department of Health,NHS Sheffield CCG,9/30/2020,C&M-PMS Prem Water Rates,PRC DELEGATED CO-COMMISSIONING,UPWELL STREET SURGERY,33825284,144.59,RAMWP,S4 8AN
Department of Health,NHS Sheffield CCG,9/30/2020,C&M-PMS QOF Aspiration,PRC DELEGATED CO-COMMISSIONING,UPWELL STREET SURGERY,33825284,"3,919.87",QUASPP,S4 8AN
Department of Health,NHS Sheffield CCG,9/30/2020,C&M-PMS DES Extended Hours Access,PRC DELEGATED CO-COMMISSIONING,VALLEY MEDICAL CENTRE,33825285,"-2,507.53",EXTHDP,S36 1BX
Department of Health,NHS Sheffield CCG,9/30/2020,C&M-PMS GP Statutory Levy,PRC DELEGATED CO-COMMISSIONING,VALLEY MEDICAL CENTRE,33825285,-335.13,STATL,S36 1BX
Department of Health,NHS Sheffield CCG,9/30/2020,C&M-PMS Out of Hours Opt Outs,PRC DELEGATED CO-COMMISSIONING,VALLEY MEDICAL CENTRE,33825285,"-3,816.04",APMOOH,S36 1BX
Department of Health,NHS Sheffield CCG,9/30/2020,C&M-PMS PCN DES Clinical Director,PRC DELEGATED CO-COMMISSIONING,VALLEY MEDICAL CENTRE,33825285,"-1,248.58",CLINDP,S36 1BX
Department of Health,NHS Sheffield CCG,9/30/2020,C&M-PMS PCN DES PCN support,LOCAL ENHANCED SERVICES,VALLEY MEDICAL CENTRE,33825285,"-2,594.00",PCNSUP,S36 1BX
Department of Health,NHS Sheffield CCG,9/30/2020,C&M-PMS PCN DES Participation,PRC DELEGATED CO-COMMISSIONING,VALLEY MEDICAL CENTRE,33825285,"-1,502.00",PARTIP,S36 1BX
Department of Health,NHS Sheffield CCG,9/30/2020,C&M-PCN DES Support Payment,PRC DELEGATED CO-COMMISSIONING,VALLEY MEDICAL CENTRE,33825286,976.44,SUPPPP,S36 1BX
Department of Health,NHS Sheffield CCG,9/30/2020,C&M-PMS Contract Value,PRC DELEGATED CO-COMMISSIONING,VALLEY MEDICAL CENTRE,33825286,"80,144.13",BABALP,S36 1BX
Department of Health,NHS Sheffield CCG,9/30/2020,C&M-PMS DES Extended Hours Access,PRC DELEGATED CO-COMMISSIONING,VALLEY MEDICAL CENTRE,33825286,"5,018.52",EXTHDP,S36 1BX
Department of Health,NHS Sheffield CCG,9/30/2020,C&M-PMS Funding Differential Review,PRC DELEGATED CO-COMMISSIONING,VALLEY MEDICAL CENTRE,33825286,"1,519.02",ZFUNFP,S36 1BX
Department of Health,NHS Sheffield CCG,9/30/2020,C&M-PMS PCN DES Clinical Director,PRC DELEGATED CO-COMMISSIONING,VALLEY MEDICAL CENTRE,33825286,"2,493.70",CLINDP,S36 1BX
Department of Health,NHS Sheffield CCG,9/30/2020,C&M-PMS PCN DES PCN support,LOCAL ENHANCED SERVICES,VALLEY MEDICAL CENTRE,33825286,"5,188.00",PCNSUP,S36 1BX
Department of Health,NHS Sheffield CCG,9/30/2020,C&M-PMS PCN DES Participation,PRC DELEGATED CO-COMMISSIONING,VALLEY MEDICAL CENTRE,33825286,"1,502.00",PARTIP,S36 1BX
Department of Health,NHS Sheffield CCG,9/30/2020,C&M-PMS PCO Locum Adop/Pat/Mat,PRC DELEGATED CO-COMMISSIONING,VALLEY MEDICAL CENTRE,33825286,"11,669.16",SICKC,S36 1BX
Department of Health,NHS Sheffield CCG,9/30/2020,C&M-PMS Prem Actual Rent,PRC DELEGATED CO-COMMISSIONING,VALLEY MEDICAL CENTRE,33825286,"25,468.75",RENT,S36 1BX
Department of Health,NHS Sheffield CCG,9/30/2020,C&M-PMS Prem Rates,PRC DELEGATED CO-COMMISSIONING,VALLEY MEDICAL CENTRE,33825286,"1,784.00",RANDRP,S36 1BX
Department of Health,NHS Sheffield CCG,9/30/2020,C&M-PMS QOF Aspiration,PRC DELEGATED CO-COMMISSIONING,VALLEY MEDICAL CENTRE,33825286,"9,062.68",QUASPP,S36 1BX
Department of Health,NHS Sheffield CCG,9/30/2020,Cont Care-Physical Disab (<65),CHC ADULT FULLY FUNDED,VALORUM CARE LTD,33793584,"79,696.68",CHC SCHEDULE SEPTEMBER 2020 - Valorum Care Limited (Mickley Hall),LS19 7RW
Department of Health,NHS Sheffield CCG,9/30/2020,C&M-GMS Cost of Drugs -Prescribing,LOCAL ENHANCED SERVICES,WALKLEY HOUSE MEDICAL CENTRE,34000953,422.35,DRGP,S6 3TN
Department of Health,NHS Sheffield CCG,9/30/2020,C&M-GMS Global Sum,PRC DELEGATED CO-COMMISSIONING,WALKLEY HOUSE MEDICAL CENTRE,34000953,"90,350.11",GSUMG,S6 3TN
Department of Health,NHS Sheffield CCG,9/30/2020,C&M-GMS PCN DES Participation,PRC DELEGATED CO-COMMISSIONING,WALKLEY HOUSE MEDICAL CENTRE,34000953,"1,759.55",PARTIG,S6 3TN
Department of Health,NHS Sheffield CCG,9/30/2020,C&M-GMS PCO Locum Sickness,PRC DELEGATED CO-COMMISSIONING,WALKLEY HOUSE MEDICAL CENTRE,34000953,"14,012.16",LOCSIG,S6 3TN
Department of Health,NHS Sheffield CCG,9/30/2020,C&M-GMS Prem Notional Rent,PRC DELEGATED CO-COMMISSIONING,WALKLEY HOUSE MEDICAL CENTRE,34000953,"5,635.50",NRENT,S6 3TN
Department of Health,NHS Sheffield CCG,9/30/2020,C&M-GMS Prem Rates,PRC DELEGATED CO-COMMISSIONING,WALKLEY HOUSE MEDICAL CENTRE,34000953,"9,546.84",RANDR,S6 3TN
Department of Health,NHS Sheffield CCG,9/30/2020,C&M-GMS Prof Fees Prescribing,PRC DELEGATED CO-COMMISSIONING,WALKLEY HOUSE MEDICAL CENTRE,34000953,119.77,DRGPPF,S6 3TN
Department of Health,NHS Sheffield CCG,9/30/2020,C&M-GMS QOF Aspiration,PRC DELEGATED CO-COMMISSIONING,WALKLEY HOUSE MEDICAL CENTRE,34000953,"8,644.85",QUASPG,S6 3TN
Department of Health,NHS Sheffield CCG,9/30/2020,C&M-GMS Cost of Drugs -Prescribing,LOCAL ENHANCED SERVICES,WHITE HOUSE SURGERY SHEFFIELD,34000951,246.58,DRGP,S2 1SL
Department of Health,NHS Sheffield CCG,9/30/2020,C&M-GMS Global Sum,PRC DELEGATED CO-COMMISSIONING,WHITE HOUSE SURGERY SHEFFIELD,34000951,"54,455.09",GSUMG,S2 1SL
Department of Health,NHS Sheffield CCG,9/30/2020,C&M-GMS PCN DES Participation,PRC DELEGATED CO-COMMISSIONING,WHITE HOUSE SURGERY SHEFFIELD,34000951,"1,055.34",PARTIG,S2 1SL
Department of Health,NHS Sheffield CCG,9/30/2020,C&M-GMS Prem Notional Rent,PRC DELEGATED CO-COMMISSIONING,WHITE HOUSE SURGERY SHEFFIELD,34000951,"9,412.50",NRENT,S2 1SL
Department of Health,NHS Sheffield CCG,9/30/2020,C&M-GMS Prem Rates,PRC DELEGATED CO-COMMISSIONING,WHITE HOUSE SURGERY SHEFFIELD,34000951,"2,483.00",RANDR,S2 1SL
Department of Health,NHS Sheffield CCG,9/30/2020,C&M-GMS Prem Water Rates,PRC DELEGATED CO-COMMISSIONING,WHITE HOUSE SURGERY SHEFFIELD,34000951,262.28,RAMW,S2 1SL
Department of Health,NHS Sheffield CCG,9/30/2020,C&M-GMS Prof Fees Prescribing,PRC DELEGATED CO-COMMISSIONING,WHITE HOUSE SURGERY SHEFFIELD,34000951,92.13,DRGPPF,S2 1SL
Department of Health,NHS Sheffield CCG,9/30/2020,C&M-GMS QOF Aspiration,PRC DELEGATED CO-COMMISSIONING,WHITE HOUSE SURGERY SHEFFIELD,34000951,"6,054.80",QUASPG,S2 1SL
Department of Health,NHS Sheffield CCG,9/30/2020,Professional Fees,BEREAVEMENT SERVICE,WHOLE SYSTEMS PARTNERSHIP,33730388,"40,000.00",,HG5 9JD
Department of Health,NHS Sheffield CCG,9/30/2020,Cont Care-Physical Disab (<65),CHC ADULT FULLY FUNDED,WILLOWBECK HEALTH CARE LTD,33793567,"162,813.40",CHC SCHEDULE SEPTEMBER 2020 - Willowbeck Health Care Ltd (Exemplar HC),S4 8AR
Department of Health,NHS Sheffield CCG,9/30/2020,C&M-PMS Contract Value,PRC DELEGATED CO-COMMISSIONING,WINCOBANK MEDICAL CENTRE,33825290,"64,205.78",BABALP,S9 1DJ
Department of Health,NHS Sheffield CCG,9/30/2020,C&M-PMS Funding Differential Review,PRC DELEGATED CO-COMMISSIONING,WINCOBANK MEDICAL CENTRE,33825290,"1,151.96",ZFUNFP,S9 1DJ
Department of Health,NHS Sheffield CCG,9/30/2020,C&M-PMS Out of Hours Opt Outs,PRC DELEGATED CO-COMMISSIONING,WINCOBANK MEDICAL CENTRE,33825290,12.27,APMOOH,S9 1DJ
Department of Health,NHS Sheffield CCG,9/30/2020,C&M-PMS PCN DES Participation,PRC DELEGATED CO-COMMISSIONING,WINCOBANK MEDICAL CENTRE,33825290,"1,191.31",PARTIP,S9 1DJ
Department of Health,NHS Sheffield CCG,9/30/2020,C&M-PMS Prem Healthcentre Rent,PRC DELEGATED CO-COMMISSIONING,WINCOBANK MEDICAL CENTRE,33825290,"46,340.33",HEALTH,S9 1DJ
Department of Health,NHS Sheffield CCG,9/30/2020,C&M-PMS QOF Aspiration,PRC DELEGATED CO-COMMISSIONING,WINCOBANK MEDICAL CENTRE,33825290,"5,972.45",QUASPP,S9 1DJ
Department of Health,NHS Sheffield CCG,9/30/2020,C&M-PMS Contract Value,PRC DELEGATED CO-COMMISSIONING,WOODHOUSE HEALTH CENTRE,33825288,"101,795.51",BABALP,S13 7LY
Department of Health,NHS Sheffield CCG,9/30/2020,C&M-PMS Funding Differential Review,PRC DELEGATED CO-COMMISSIONING,WOODHOUSE HEALTH CENTRE,33825288,"2,095.91",ZFUNFP,S13 7LY
Department of Health,NHS Sheffield CCG,9/30/2020,C&M-PMS Out of Hours Opt Outs,PRC DELEGATED CO-COMMISSIONING,WOODHOUSE HEALTH CENTRE,33825288,138.27,APMOOH,S13 7LY
Department of Health,NHS Sheffield CCG,9/30/2020,C&M-PMS PCN DES Participation,PRC DELEGATED CO-COMMISSIONING,WOODHOUSE HEALTH CENTRE,33825288,"1,913.91",PARTIP,S13 7LY
Department of Health,NHS Sheffield CCG,9/30/2020,C&M-PMS PCO Other,PRC DELEGATED CO-COMMISSIONING,WOODHOUSE HEALTH CENTRE,33825288,751.30,CQCRP,S13 7LY
Department of Health,NHS Sheffield CCG,9/30/2020,C&M-PMS Prem Notional Rent,PRC DELEGATED CO-COMMISSIONING,WOODHOUSE HEALTH CENTRE,33825288,"6,338.58",NRENT,S13 7LY
Department of Health,NHS Sheffield CCG,9/30/2020,C&M-PMS Prem Rates,PRC DELEGATED CO-COMMISSIONING,WOODHOUSE HEALTH CENTRE,33825288,"1,717.71",RANDRP,S13 7LY
Department of Health,NHS Sheffield CCG,9/30/2020,C&M-PMS QOF Aspiration,PRC DELEGATED CO-COMMISSIONING,WOODHOUSE HEALTH CENTRE,33825288,"13,397.77",QUASPP,S13 7LY
Department of Health,NHS Sheffield CCG,9/30/2020,C&M-PMS Contract Value,PRC DELEGATED CO-COMMISSIONING,WOODSEATS MEDICAL CENTRE,33825021,"80,727.83",BABALP,S8 0SH
Department of Health,NHS Sheffield CCG,9/30/2020,C&M-PMS Funding Differential Review,PRC DELEGATED CO-COMMISSIONING,WOODSEATS MEDICAL CENTRE,33825021,"1,061.06",ZFUNFP,S8 0SH
Department of Health,NHS Sheffield CCG,9/30/2020,C&M-PMS Out of Hours Opt Outs,PRC DELEGATED CO-COMMISSIONING,WOODSEATS MEDICAL CENTRE,33825021,39.24,APMOOH,S8 0SH
Department of Health,NHS Sheffield CCG,9/30/2020,C&M-PMS PCN DES Participation,PRC DELEGATED CO-COMMISSIONING,WOODSEATS MEDICAL CENTRE,33825021,"1,504.80",PARTIP,S8 0SH
Department of Health,NHS Sheffield CCG,9/30/2020,C&M-PMS PCO Locum Adop/Pat/Mat,PRC DELEGATED CO-COMMISSIONING,WOODSEATS MEDICAL CENTRE,33825021,"6,794.38",SICKC,S8 0SH
Department of Health,NHS Sheffield CCG,9/30/2020,C&M-PMS PCO Other,PRC DELEGATED CO-COMMISSIONING,WOODSEATS MEDICAL CENTRE,33825021,645.70,CQCRP,S8 0SH
Department of Health,NHS Sheffield CCG,9/30/2020,C&M-PMS Prem Notional Rent,PRC DELEGATED CO-COMMISSIONING,WOODSEATS MEDICAL CENTRE,33825021,"11,666.67",NRENT,S8 0SH
Department of Health,NHS Sheffield CCG,9/30/2020,C&M-PMS Prem Rates,PRC DELEGATED CO-COMMISSIONING,WOODSEATS MEDICAL CENTRE,33825021,"3,149.00",RANDRP,S8 0SH
Department of Health,NHS Sheffield CCG,9/30/2020,C&M-PMS QOF Aspiration,PRC DELEGATED CO-COMMISSIONING,WOODSEATS MEDICAL CENTRE,33825021,"8,588.98",QUASPP,S8 0SH
Department of Health,NHS Sheffield CCG,9/30/2020,Hcare Srv Rec NHS Trust-Contract Baseline,AMBULANCE SERVICES,YORKSHIRE AMBULANCE SERVICE NHS TRUST,33863836,"2,232,179.62",,WF2 0XQ
